Service area,Service sub division,TVBC Service,Expense type,Detailed expense type,TVBC account code,Date Paid,Transaction Reference, Nett Value ,Supplier Name
Cultural & Related,Open Spaces,Environmental,Transport Related Expenditure,Direct Transport Costs,Repair Materials,25/03/2021,338531,-1200,A T H Machinery Ltd
Environmental & Regulatory,Street Cleansing (not chargeable to Highways),Environmental,Transport Related Expenditure,Direct Transport Costs,Repair Materials,18/03/2021,309319,-993.21,Lister Wilder
Central Services to the Public,Management & Support Services,IT,Supplies & Services,Communications & Computing,Communication Links,25/03/2021,325751,-988.61,Virgin Media Payments Ltd
Central Services to the Public,Emergency Planning,Corporate & Democratic,Supplies & Services,Communications & Computing,Land Line Telephone Charges,25/03/2021,335811,-91,Virgin Media Payments Ltd
Cultural & Related,Culture & Heritage,Community and Leisure ,Supplies & Services,Communications & Computing,Communication Links,25/03/2021,335811,-74.06,Virgin Media Payments Ltd
Central Services to the Public,Management & Support Services,IT,Supplies & Services,Communications & Computing,Communication Links,25/03/2021,335811,-67,Virgin Media Payments Ltd
Central Services to the Public,Management & Support Services,Environmental,Supplies & Services,Communications & Computing,Land Line Telephone Charges,25/03/2021,335811,-65.82,Virgin Media Payments Ltd
Cultural & Related,Culture & Heritage,Premises & Asset Management,Supplies & Services,Communications & Computing,Land Line Telephone Charges,25/03/2021,335811,-39,Virgin Media Payments Ltd
"Highways, Roads & Transport",Parking Services,Plan Pol & Transport,Supplies & Services,Communications & Computing,Alarm Lines,25/03/2021,335811,-37,Virgin Media Payments Ltd
External Trading Accounts,Business Parks,Premises & Asset Management,Supplies & Services,Communications & Computing,Land Line Telephone Charges,25/03/2021,335811,-29.73,Virgin Media Payments Ltd
Cultural & Related,Culture & Heritage,Premises & Asset Management,Supplies & Services,Communications & Computing,Land Line Telephone Charges,25/03/2021,335811,-26,Virgin Media Payments Ltd
Central Services to the Public,Management & Support Services,IT,Supplies & Services,Communications & Computing,Communication Links,25/03/2021,335811,-26,Virgin Media Payments Ltd
Cultural & Related,Recreation & Sport,Community and Leisure ,Supplies & Services,Communications & Computing,Land Line Telephone Charges,25/03/2021,335811,-26,Virgin Media Payments Ltd
Cultural & Related,Recreation & Sport,Community and Leisure ,Supplies & Services,Communications & Computing,Land Line Telephone Charges,25/03/2021,335811,-13.1,Virgin Media Payments Ltd
Cultural & Related,Recreation & Sport,Community and Leisure ,Supplies & Services,Communications & Computing,Land Line Telephone Charges,25/03/2021,335811,-13,Virgin Media Payments Ltd
Planning & Development,Development Control,Planning & Building,Supplies & Services,Services,Training Courses,18/03/2021,313993,-424,Royal Town Planning Institute
Cultural & Related,Tourism,Planning Policy & Economic Development ,Supplies & Services,Grants & Subscriptions,Contributions,25/03/2021,338464,500,Army Flying Museum Limited
Cultural & Related,Culture & Heritage,Community and Leisure ,Third Party Payments,Private contractors,Main Contractor Costs,30/03/2021,337693,500,Hampshire County Council
Planning & Development,Community Development,Community and Leisure ,Supplies & Services,Grants & Subscriptions,Grants,18/03/2021,337777,500,Longparish Parish Council
Central Services to the Public,Management & Support Services,Environmental,Transport Related Expenditure,Direct Transport Costs,Oils,04/03/2021,334466,418.2,Fuchs Lubricants (Uk) Plc
Planning & Development,Development Control,Planning & Building,Supplies & Services,Services,Training Courses,18/03/2021,337770,424,Royal Town Planning Institute
Environmental & Regulatory,Waste management,Environmental,Employees,Indirect Employee Expenses,Agency Staff - Waged Posts,30/03/2021,338354,424.56,Simple Recruitment Services Ltd
"Highways, Roads & Transport",Highways and roads - maintenance,Plan Pol & Transport,Premises related Expenditure,Repairs Alterations & Maintenance of Buildings,General Repairs,25/03/2021,338341,425,Externiture Ltd
Environmental & Regulatory,Waste management,Environmental,Transport Related Expenditure,Direct Transport Costs,Repair Materials,25/03/2021,338105,425.24,Hyphose Ltd
Cultural & Related,Open Spaces,Community and Leisure ,Premises related Expenditure,Grounds Maintenance Costs,Gm - Additional Works,25/03/2021,338466,130.34,Evergreen Rabbit Control
Cultural & Related,Open Spaces,Community and Leisure ,Premises related Expenditure,Grounds Maintenance Costs,Gm - Additional Works,25/03/2021,338466,300,Evergreen Rabbit Control
Central Services to the Public,Management & Support Services,Premises & Asset Management,Premises related Expenditure,Energy Costs,Gas,30/03/2021,338822,435.54,Total Gas & Power Ltd
Environmental & Regulatory,Street Cleansing (not chargeable to Highways),Environmental,Transport Related Expenditure,Direct Transport Costs,Repair Materials,18/03/2021,336998,445.44,Lister Wilder
External Trading Accounts,Business Parks,Premises & Asset Management,Supplies & Services,Services,Legal Fees,04/03/2021,331684,450,Cornerstone Barristers
Planning & Development,Development Control,Planning & Building,Transport Related Expenditure,Contract Hire and Operating Leases,Officer lease cars,18/03/2021,337128,541.02,Arval Uk Ltd
Cultural & Related,Culture & Heritage,Premises & Asset Management,Premises related Expenditure,Water Services,Water And Sewerage Charges,04/03/2021,330365,541.94,Castle Water Limited
Central Services to the Public,Elections,Legal & Democratic,Supplies & Services,"Printing, Stationery & General Office Expenses",External Printing,18/03/2021,336989,451.93,Financial Data Management Plc
Environmental & Regulatory,Regulatory Services,Premises & Asset Management,Premises related Expenditure,Water Services,Water And Sewerage Charges,11/03/2021,336882,547.64,Castle Water Limited
Central Services to the Public,Management & Support Services,IT,Supplies & Services,Communications & Computing,Communication Links,04/03/2021,335207,460.53,Zen Internet Limited
Central Services to the Public,Management & Support Services,IT,Supplies & Services,Communications & Computing,Communication Links,11/03/2021,336613,460.53,Zen Internet Limited
Central Services to the Public,Management & Support Services,IT,Supplies & Services,Communications & Computing,Communication Links,30/03/2021,338417,460.53,Zen Internet Limited
Cultural & Related,Culture & Heritage,Estates and Economic Development ,Third Party Payments,Private contractors,Main Contractor Costs,30/03/2021,338894,462.5,The Genesis Design Studio Ltd
Cultural & Related,Open Spaces,Community and Leisure ,Premises related Expenditure,Grounds Maintenance Costs,Gm - Additional Works,18/03/2021,333604,462.5,Pointer Group Ltd
Cultural & Related,Recreation & Sport,Community and Leisure ,Employees,Indirect Employee Expenses,Temporary Staff,18/03/2021,336674,462.71,Adecco Uk Ltd
Central Services to the Public,Local Tax Collection,Revenues,Supplies & Services,Services,Professional Fees,11/03/2021,335819,53.38,Ross & Roberts
Cultural & Related,Recreation & Sport,Community and Leisure ,Supplies & Services,Communications & Computing,Land Line Telephone Charges,25/03/2021,332908,0,Virgin Media Payments Ltd
Cultural & Related,Recreation & Sport,Community and Leisure ,Supplies & Services,Communications & Computing,Land Line Telephone Charges,25/03/2021,332908,13,Virgin Media Payments Ltd
Cultural & Related,Culture & Heritage,Premises & Asset Management,Supplies & Services,Communications & Computing,Land Line Telephone Charges,25/03/2021,332908,26,Virgin Media Payments Ltd
Central Services to the Public,Management & Support Services,IT,Supplies & Services,Communications & Computing,Communication Links,25/03/2021,332908,26,Virgin Media Payments Ltd
Cultural & Related,Recreation & Sport,Community and Leisure ,Supplies & Services,Communications & Computing,Land Line Telephone Charges,25/03/2021,332908,26,Virgin Media Payments Ltd
External Trading Accounts,Business Parks,Premises & Asset Management,Supplies & Services,Communications & Computing,Land Line Telephone Charges,25/03/2021,332908,26.3,Virgin Media Payments Ltd
"Highways, Roads & Transport",Parking Services,Plan Pol & Transport,Supplies & Services,Communications & Computing,Alarm Lines,25/03/2021,332908,37,Virgin Media Payments Ltd
Cultural & Related,Culture & Heritage,Premises & Asset Management,Supplies & Services,Communications & Computing,Land Line Telephone Charges,25/03/2021,332908,39,Virgin Media Payments Ltd
Central Services to the Public,Management & Support Services,Environmental,Supplies & Services,Communications & Computing,Land Line Telephone Charges,25/03/2021,332908,52.79,Virgin Media Payments Ltd
Central Services to the Public,Management & Support Services,IT,Supplies & Services,Communications & Computing,Communication Links,25/03/2021,332908,67,Virgin Media Payments Ltd
Cultural & Related,Culture & Heritage,Community and Leisure ,Supplies & Services,Communications & Computing,Communication Links,25/03/2021,332908,74.02,Virgin Media Payments Ltd
Central Services to the Public,Emergency Planning,Corporate & Democratic,Supplies & Services,Communications & Computing,Land Line Telephone Charges,25/03/2021,332908,78,Virgin Media Payments Ltd
Cultural & Related,Recreation & Sport,Community and Leisure ,Supplies & Services,"Equipment, Furniture & Materials",Purchase Equip + Materials,11/03/2021,335837,465.38,Fusion Office Ltd
Cultural & Related,Recreation & Sport,Community and Leisure ,Supplies & Services,Communications & Computing,Land Line Telephone Charges,25/03/2021,338375,0,Virgin Media Payments Ltd
Cultural & Related,Recreation & Sport,Community and Leisure ,Supplies & Services,Communications & Computing,Land Line Telephone Charges,25/03/2021,338375,13,Virgin Media Payments Ltd
Cultural & Related,Culture & Heritage,Premises & Asset Management,Supplies & Services,Communications & Computing,Land Line Telephone Charges,25/03/2021,338375,26,Virgin Media Payments Ltd
Central Services to the Public,Management & Support Services,IT,Supplies & Services,Communications & Computing,Communication Links,25/03/2021,338375,26,Virgin Media Payments Ltd
Cultural & Related,Recreation & Sport,Community and Leisure ,Supplies & Services,Communications & Computing,Land Line Telephone Charges,25/03/2021,338375,26,Virgin Media Payments Ltd
External Trading Accounts,Business Parks,Premises & Asset Management,Supplies & Services,Communications & Computing,Land Line Telephone Charges,25/03/2021,338375,27.05,Virgin Media Payments Ltd
"Highways, Roads & Transport",Parking Services,Plan Pol & Transport,Supplies & Services,Communications & Computing,Alarm Lines,25/03/2021,338375,37,Virgin Media Payments Ltd
Cultural & Related,Culture & Heritage,Premises & Asset Management,Supplies & Services,Communications & Computing,Land Line Telephone Charges,25/03/2021,338375,39,Virgin Media Payments Ltd
Central Services to the Public,Management & Support Services,Environmental,Supplies & Services,Communications & Computing,Land Line Telephone Charges,25/03/2021,338375,52.61,Virgin Media Payments Ltd
Central Services to the Public,Management & Support Services,IT,Supplies & Services,Communications & Computing,Communication Links,25/03/2021,338375,67,Virgin Media Payments Ltd
Cultural & Related,Culture & Heritage,Community and Leisure ,Supplies & Services,Communications & Computing,Communication Links,25/03/2021,338375,74.01,Virgin Media Payments Ltd
Central Services to the Public,Emergency Planning,Corporate & Democratic,Supplies & Services,Communications & Computing,Land Line Telephone Charges,25/03/2021,338375,78,Virgin Media Payments Ltd
Cultural & Related,Recreation & Sport,Community and Leisure ,Supplies & Services,Communications & Computing,Land Line Telephone Charges,25/03/2021,325573,0,Virgin Media Payments Ltd
Cultural & Related,Recreation & Sport,Community and Leisure ,Supplies & Services,Communications & Computing,Land Line Telephone Charges,25/03/2021,325573,13,Virgin Media Payments Ltd
Cultural & Related,Culture & Heritage,Premises & Asset Management,Supplies & Services,Communications & Computing,Land Line Telephone Charges,25/03/2021,325573,26,Virgin Media Payments Ltd
Central Services to the Public,Management & Support Services,IT,Supplies & Services,Communications & Computing,Communication Links,25/03/2021,325573,26,Virgin Media Payments Ltd
Cultural & Related,Recreation & Sport,Community and Leisure ,Supplies & Services,Communications & Computing,Land Line Telephone Charges,25/03/2021,325573,26,Virgin Media Payments Ltd
External Trading Accounts,Business Parks,Premises & Asset Management,Supplies & Services,Communications & Computing,Land Line Telephone Charges,25/03/2021,325573,27.56,Virgin Media Payments Ltd
"Highways, Roads & Transport",Parking Services,Plan Pol & Transport,Supplies & Services,Communications & Computing,Alarm Lines,25/03/2021,325573,37,Virgin Media Payments Ltd
Cultural & Related,Culture & Heritage,Premises & Asset Management,Supplies & Services,Communications & Computing,Land Line Telephone Charges,25/03/2021,325573,39,Virgin Media Payments Ltd
Central Services to the Public,Management & Support Services,Environmental,Supplies & Services,Communications & Computing,Land Line Telephone Charges,25/03/2021,325573,52.54,Virgin Media Payments Ltd
Central Services to the Public,Management & Support Services,IT,Supplies & Services,Communications & Computing,Communication Links,25/03/2021,325573,67,Virgin Media Payments Ltd
Cultural & Related,Culture & Heritage,Community and Leisure ,Supplies & Services,Communications & Computing,Communication Links,25/03/2021,325573,74.12,Virgin Media Payments Ltd
Central Services to the Public,Emergency Planning,Corporate & Democratic,Supplies & Services,Communications & Computing,Land Line Telephone Charges,25/03/2021,325573,78,Virgin Media Payments Ltd
"Highways, Roads & Transport",Parking Services,Plan Pol & Transport,Supplies & Services,Services,Professional Fees,04/03/2021,332619,567.3,Patrol
External Trading Accounts,Property Investments,Premises & Asset Management,Premises related Expenditure,Grounds Maintenance Costs,Grounds Maintenance Contracts,30/03/2021,338181,473.19,Landmarks Sustainability Ltd
Cultural & Related,Open Spaces,Environmental,Supplies & Services,Miscellaneous Expenses,Waste Collection,11/03/2021,334456,474.58,Veolia Es Hampshire Ltd
Planning & Development,Economic Development,Planning Policy & Economic Development ,Supplies & Services,Grants & Subscriptions,Grants,11/03/2021,336668,475,Enterprise First (Southern) Ltd
Central Services to the Public,Management & Support Services,Premises & Asset Management,Third Party Payments,Other Establishments,Private Contractors,11/03/2021,336666,475,Spear Electrical Limited
Cultural & Related,Recreation & Sport,Community and Leisure ,Premises related Expenditure,Grounds Maintenance Costs,Gm - Additional Works,25/03/2021,338338,475,Container Disposal
Environmental & Regulatory,Waste management,Environmental,Employees,Indirect Employee Expenses,Agency Staff - Waged Posts,25/03/2021,338355,475.2,Golden Orb Solutions
Cultural & Related,Recreation & Sport,Community and Leisure ,Employees,Indirect Employee Expenses,Temporary Staff,18/03/2021,336671,475.44,Adecco Uk Ltd
Housing Services,Homelessness,Housing and Environmental Health ,Supplies & Services,Grants & Subscriptions,Grants,04/03/2021,335807,573.29,Aster Communities
Cultural & Related,Recreation & Sport,Community and Leisure ,Employees,Indirect Employee Expenses,Temporary Staff,18/03/2021,336672,479.69,Adecco Uk Ltd
Cultural & Related,Recreation & Sport,Community and Leisure ,Premises related Expenditure,Grounds Maintenance Costs,Gm - Additional Works,18/03/2021,335220,480,Flower Farms Ltd
Cultural & Related,Recreation & Sport,Community and Leisure ,Premises related Expenditure,Grounds Maintenance Costs,Gm - Additional Works,04/03/2021,332655,480,Greentech Limited
Cultural & Related,Open Spaces,Environmental,Supplies & Services,"Equipment, Furniture & Materials",Purchase Equip + Materials,11/03/2021,337015,480,Personal Data - Data Protection Act 1998
Environmental & Regulatory,Street Cleansing (not chargeable to Highways),Environmental,Transport Related Expenditure,Direct Transport Costs,Repair Materials,04/03/2021,334461,480.44,Adams Morey Ltd
Cultural & Related,Open Spaces,Community and Leisure ,Premises related Expenditure,Grounds Maintenance Costs,Gm - Additional Works,30/03/2021,338343,483.25,Spaldings (Uk) Limited
Cultural & Related,Recreation & Sport,Community and Leisure ,Employees,Indirect Employee Expenses,Temporary Staff,18/03/2021,336673,483.93,Adecco Uk Ltd
Cultural & Related,Recreation & Sport,Community and Leisure ,Employees,Indirect Employee Expenses,Temporary Staff,18/03/2021,336677,483.93,Adecco Uk Ltd
Environmental & Regulatory,Street Cleansing (not chargeable to Highways),Environmental,Transport Related Expenditure,Contract Hire and Operating Leases,Vehicles-Hired\Leased,25/03/2021,336886,485,Go Plant Ltd
Planning & Development,Community Development,Community and Leisure ,Supplies & Services,Grants & Subscriptions,Grants,25/03/2021,338529,587.63,Ampfield Village Hall
Cultural & Related,Recreation & Sport,Community and Leisure ,Employees,Indirect Employee Expenses,Temporary Staff,25/03/2021,338162,492.42,Adecco Uk Ltd
Central Services to the Public,Management & Support Services,Environmental,Transport Related Expenditure,Direct Transport Costs,Repair Materials,18/03/2021,336994,495.33,Sparks Commercial Services Ltd
External Trading Accounts,Business Parks,Premises & Asset Management,Supplies & Services,"Printing, Stationery & General Office Expenses",External Printing,25/03/2021,337751,497,Bulpitt Print Ltd
Central Services to the Public,Management & Support Services,Finance,Supplies & Services,Grants & Subscriptions,Subscriptions,25/03/2021,337689,499,Creditsafe Business Solutions Ltd
Central Services to the Public,Management & Support Services,Premises & Asset Management,Third Party Payments,Other Establishments,Private Contractors,30/03/2021,338891,502.7,Spear Electrical Limited
Environmental & Regulatory,Waste management,Environmental,Employees,Indirect Employee Expenses,Agency Staff - Waged Posts,25/03/2021,338147,508.62,Golden Orb Solutions
Cultural & Related,Recreation & Sport,Community and Leisure ,Employees,Indirect Employee Expenses,Temporary Staff,30/03/2021,338852,509.4,Adecco Uk Ltd
Environmental & Regulatory,Regulatory Services,Premises & Asset Management,Premises related Expenditure,Water Services,Water And Sewerage Charges,04/03/2021,330758,611.54,Castle Water Limited
Environmental & Regulatory,Waste management,Environmental,Transport Related Expenditure,Direct Transport Costs,Repair Materials,04/03/2021,334457,515.39,Adams Morey Ltd
Central Services to the Public,Elections,Legal & Democratic,Supplies & Services,"Printing, Stationery & General Office Expenses",Postage Costs,18/03/2021,336986,522.8,Financial Data Management Plc
Cultural & Related,Recreation & Sport,Community and Leisure ,Premises related Expenditure,Grounds Maintenance Costs,Gm - Additional Works,04/03/2021,333231,525,Defibshop
Cultural & Related,Recreation & Sport,Community and Leisure ,Employees,Indirect Employee Expenses,Temporary Staff,25/03/2021,337456,526.38,Adecco Uk Ltd
Cultural & Related,Recreation & Sport,Community and Leisure ,Employees,Indirect Employee Expenses,Temporary Staff,30/03/2021,338857,526.38,Adecco Uk Ltd
Cultural & Related,Recreation & Sport,Community and Leisure ,Employees,Indirect Employee Expenses,Temporary Staff,25/03/2021,338161,530.63,Adecco Uk Ltd
Cultural & Related,Recreation & Sport,Community and Leisure ,Employees,Indirect Employee Expenses,Temporary Staff,30/03/2021,338848,530.63,Adecco Uk Ltd
Cultural & Related,Recreation & Sport,Community and Leisure ,Employees,Indirect Employee Expenses,Temporary Staff,30/03/2021,338849,530.63,Adecco Uk Ltd
Cultural & Related,Recreation & Sport,Community and Leisure ,Employees,Indirect Employee Expenses,Temporary Staff,30/03/2021,338853,530.63,Adecco Uk Ltd
Central Services to the Public,Management & Support Services,Premises & Asset Management,Premises related Expenditure,Energy Costs,Gas,11/03/2021,333629,530.87,Total Gas & Power Ltd
Central Services to the Public,Management & Support Services,Environmental,Supplies & Services,"Clothes, Uniforms & Laundry",Clothing + Uniforms,04/03/2021,333658,90.3,Smi Group
Central Services to the Public,Management & Support Services,Environmental,Supplies & Services,Miscellaneous Expenses,Health And Safety,04/03/2021,333658,443.85,Smi Group
Environmental & Regulatory,Street Cleansing (not chargeable to Highways),Environmental,Supplies & Services,Miscellaneous Expenses,Hazardous / Fly Tipped Waste,25/03/2021,337018,535,Bkp Waste & Recycling Ltd
Cultural & Related,Culture & Heritage,Premises & Asset Management,Premises related Expenditure,Energy Costs,Gas,30/03/2021,338830,535.41,Total Gas & Power Ltd
Cultural & Related,Recreation & Sport,Community and Leisure ,Employees,Indirect Employee Expenses,Temporary Staff,25/03/2021,337455,539.12,Adecco Uk Ltd
Central Services to the Public,Management & Support Services,Premises & Asset Management,Supplies & Services,Services,Professional Fees,25/03/2021,337458,655,John Woolley Ltd
Central Services to the Public,Management & Support Services,HR Services,Supplies & Services,Services,External Training Consultants,04/03/2021,332919,550,Adaptis Ltd
Central Services to the Public,Management & Support Services,HR Services,Supplies & Services,Services,External Training Consultants,18/03/2021,337470,550,Adaptis Ltd
Central Services to the Public,Management & Support Services,Premises & Asset Management,Third Party Payments,Other Establishments,Private Contractors,11/03/2021,336661,554.4,Spear Electrical Limited
Cultural & Related,Open Spaces,Environmental,Supplies & Services,"Equipment, Furniture & Materials",Purchases for playgrounds,25/03/2021,338374,558.38,Ahs Ltd
Cultural & Related,Recreation & Sport,Community and Leisure ,Employees,Indirect Employee Expenses,Temporary Staff,25/03/2021,337453,560.34,Adecco Uk Ltd
Central Services to the Public,Management & Support Services,HR Services,Supplies & Services,Services,Medical Fees,30/03/2021,338902,675,Personal Data - Data Protection Act 1998
Cultural & Related,Recreation & Sport,Community and Leisure ,Premises related Expenditure,Grounds Maintenance Costs,Gm - Additional Works,18/03/2021,337749,564,Personal Data - Data Protection Act 1998
Cultural & Related,Open Spaces,Environmental,Supplies & Services,"Equipment, Furniture & Materials",Purchase Equip + Materials,30/03/2021,338541,569.94,Tudor Environmental
Central Services to the Public,Management & Support Services,IT,Supplies & Services,Communications & Computing,Communication Links,30/03/2021,338860,570,Zen Internet Limited
Cultural & Related,Open Spaces,Environmental,Transport Related Expenditure,Direct Transport Costs,Repair Materials,18/03/2021,336997,571.19,Sparks Commercial Services Ltd
Cultural & Related,Recreation & Sport,Community and Leisure ,Supplies & Services,"Equipment, Furniture & Materials",Purchase Equip + Materials,04/03/2021,335127,571.44,Roland Security Llp
Environmental & Regulatory,Waste management,Environmental,Transport Related Expenditure,Direct Transport Costs,External Garages,30/03/2021,338412,574.38,Dennis Eagle Ltd
Environmental & Regulatory,Regulatory Services,Housing and Environmental Health ,Supplies & Services,Grants and subscriptions,Capital Grants,25/03/2021,338392,693,Architectural Survey Services Ltd
Environmental & Regulatory,Regulatory Services,Housing and Environmental Health ,Supplies & Services,Grants and subscriptions,Capital Grants,25/03/2021,338393,693,Architectural Survey Services Ltd
Central Services to the Public,Management & Support Services,IT,Supplies & Services,Grants & Subscriptions,Subscriptions,30/03/2021,338546,580,South East Employers
Cultural & Related,Open Spaces,Environmental,Supplies & Services,Miscellaneous Expenses,Waste Collection,30/03/2021,338882,580.11,Collard Enviromental Ltd
"Highways, Roads & Transport",Parking Services,Plan Pol & Transport,Supplies & Services,"Clothes, Uniforms & Laundry",Clothing + Uniforms,02/03/2021,330393,583.45,Keltic
Environmental & Regulatory,Waste management,Environmental,Supplies & Services,"Printing, Stationery & General Office Expenses",External Printing,11/03/2021,336656,585,Vernham Labels Ltd
Central Services to the Public,Elections,Legal & Democratic,Supplies & Services,"Printing, Stationery & General Office Expenses",Postage Costs,04/03/2021,332917,585.6,Financial Data Management Plc
Central Services to the Public,Management & Support Services,HR Services,Third Party Payments,Other Local Authorities,Shared Service Contract Costs,04/03/2021,332642,594,Mhr International Uk Ltd
Environmental & Regulatory,Street Cleansing (not chargeable to Highways),Environmental,Supplies & Services,"Equipment, Furniture & Materials",Purchase Equip + Materials,25/03/2021,333224,594,Sweeperhire
Environmental & Regulatory,Waste management,Environmental,Employees,Indirect Employee Expenses,Agency Staff - Waged Posts,11/03/2021,337014,594,Golden Orb Solutions
Planning & Development,Development Control,Planning & Building,Supplies & Services,Services,Project Consultancy - Policy,25/03/2021,338129,600,Reading Agricultural Consultants Ltd
Environmental & Regulatory,Street Cleansing (not chargeable to Highways),Environmental,Supplies & Services,"Equipment, Furniture & Materials",Purchase Equip + Materials,30/03/2021,338404,603,Sweeperhire
Central Services to the Public,Management & Support Services,Premises & Asset Management,Supplies & Services,Miscellaneous Expenses,Waste Collection,30/03/2021,338118,608.25,Suez Recycling And Recovery Uk Ltd
Central Services to the Public,Management & Support Services,Finance,Supplies & Services,"Printing, Stationery & General Office Expenses",Postage Costs,11/03/2021,335140,609.69,Whistl Uk Ltd
External Trading Accounts,Economic Development,Premises & Asset Management,Premises related Expenditure,Cleaning and domestic supplies,Contract Cleaning - Non Estates,25/03/2021,338175,614.55,Unity
Central Services to the Public,Management & Support Services,Environmental,Supplies & Services,Miscellaneous Expenses,Health And Safety,18/03/2021,329121,108.1,Smi Group
Central Services to the Public,Management & Support Services,Environmental,Supplies & Services,"Clothes, Uniforms & Laundry",Clothing + Uniforms,18/03/2021,329121,456.47,Smi Group
Cultural & Related,Recreation & Sport,Community and Leisure ,Employees,Indirect Employee Expenses,Temporary Staff,18/03/2021,336675,615.53,Adecco Uk Ltd
Cultural & Related,Recreation & Sport,Community and Leisure ,Employees,Indirect Employee Expenses,Temporary Staff,18/03/2021,336676,615.53,Adecco Uk Ltd
Cultural & Related,Recreation & Sport,Community and Leisure ,Employees,Indirect Employee Expenses,Temporary Staff,18/03/2021,336679,615.53,Adecco Uk Ltd
Cultural & Related,Recreation & Sport,Community and Leisure ,Employees,Indirect Employee Expenses,Temporary Staff,18/03/2021,336683,615.53,Adecco Uk Ltd
Cultural & Related,Recreation & Sport,Community and Leisure ,Employees,Indirect Employee Expenses,Temporary Staff,25/03/2021,337447,615.53,Adecco Uk Ltd
Cultural & Related,Recreation & Sport,Community and Leisure ,Employees,Indirect Employee Expenses,Temporary Staff,25/03/2021,336670,615.53,Adecco Uk Ltd
Central Services to the Public,Management & Support Services,Premises & Asset Management,Third Party Payments,Other Establishments,Private Contractors,25/03/2021,335835,617.86,Spear Electrical Limited
Housing Services,"Housing strategy, advice and enabling",Housing and Environmental Health ,Supplies & Services,Communications & Computing,Computer Software,11/03/2021,325599,625,Civica Uk Ltd
Environmental & Regulatory,Community Development,Community and Leisure ,Supplies & Services,Grants & Subscriptions,Subscriptions,25/03/2021,337768,750,The Ramblers
Central Services to the Public,Management & Support Services,Premises & Asset Management,Premises related Expenditure,Repairs Alterations & Maintenance of Buildings,General Repairs,30/03/2021,338540,625,Personal Data - Data Protection Act 1998
Planning & Development,Economic Development,Planning Policy & Economic Development ,Supplies & Services,Grants & Subscriptions,Grants,11/03/2021,336912,750,Personal Data - Data Protection Act 1998
Cultural & Related,Open Spaces,Environmental,Supplies & Services,Miscellaneous Expenses,Waste Collection,25/03/2021,322848,625.26,Collard Enviromental Ltd
Central Services to the Public,Management & Support Services,Environmental,Supplies & Services,"Equipment, Furniture & Materials",Maintenance Equip + Materials,04/03/2021,335141,625.56,Totalkare H.D.W.S Ltd
Cultural & Related,Open Spaces,Environmental,Transport Related Expenditure,Direct Transport Costs,Repair Materials,04/03/2021,333217,628.44,Hyphose Ltd
Environmental & Regulatory,Waste management,Environmental,Transport Related Expenditure,Direct Transport Costs,Repair Materials,04/03/2021,333221,52.49,Dennis Eagle Ltd
Central Services to the Public,Management & Support Services,Environmental,Transport Related Expenditure,Direct Transport Costs,Repair Materials,04/03/2021,333221,581.04,Dennis Eagle Ltd
Cultural & Related,Open Spaces,Environmental,Supplies & Services,"Equipment, Furniture & Materials",Purchases for playgrounds,25/03/2021,336905,635.24,Gb Sport & Leisure Uk Ltd
External Trading Accounts,Business Parks,Premises & Asset Management,Supplies & Services,"Printing, Stationery & General Office Expenses",External Printing,25/03/2021,337752,636,Bulpitt Print Ltd
Cultural & Related,Recreation & Sport,Community and Leisure ,Employees,Indirect Employee Expenses,Temporary Staff,18/03/2021,336678,636.75,Adecco Uk Ltd
Cultural & Related,Recreation & Sport,Community and Leisure ,Employees,Indirect Employee Expenses,Temporary Staff,25/03/2021,338167,636.75,Adecco Uk Ltd
Cultural & Related,Culture & Heritage,Premises & Asset Management,Premises related Expenditure,Energy Costs,Gas,11/03/2021,333642,639.28,Total Gas & Power Ltd
Cultural & Related,Open Spaces,Environmental,Supplies & Services,"Equipment, Furniture & Materials",Purchase Equip + Materials,30/03/2021,338553,643,Nomix Enviro
Cultural & Related,Culture & Heritage,Premises & Asset Management,Premises related Expenditure,Repairs Alterations & Maintenance of Buildings,Building Maint - Non Estates,18/03/2021,337665,644.49,Spear Electrical Limited
Planning & Development,Economic Development,Premises & Asset Management,Supplies & Services,Services,Project Consultancy - Policy,11/03/2021,336609,775,Personal Data - Data Protection Act 1998
Environmental & Regulatory,Waste management,Environmental,Transport Related Expenditure,Direct Transport Costs,Repair Materials,04/03/2021,334463,109.61,Dennis Eagle Ltd
Environmental & Regulatory,Waste management,Environmental,Transport Related Expenditure,Direct Transport Costs,External Garages,04/03/2021,334463,537.98,Dennis Eagle Ltd
Environmental & Regulatory,Waste & Recycling Management,Environmental,Employees,Indirect Employee Expenses,Agency Staff - Waged Posts,30/03/2021,338361,649.7,Golden Orb Solutions
Cultural & Related,Recreation & Sport,Community and Leisure ,Premises related Expenditure,Cleaning and domestic supplies,Contract Cleaning - Non Estates,25/03/2021,338373,325,Hi-Spec Facilities Services Plc
Cultural & Related,Recreation & Sport,Community and Leisure ,Premises related Expenditure,Cleaning and domestic supplies,Contract Cleaning - Non Estates,25/03/2021,338373,325,Hi-Spec Facilities Services Plc
"Highways, Roads & Transport",Parking Services,Plan Pol & Transport,Supplies & Services,Services,Legal Fees,25/03/2021,337688,780,Enforcement Bailiffs Ltd
Cultural & Related,Recreation & Sport,Community and Leisure ,Employees,Indirect Employee Expenses,Temporary Staff,30/03/2021,338858,653.73,Adecco Uk Ltd
Cultural & Related,Open Spaces,Environmental,Supplies & Services,"Equipment, Furniture & Materials",Purchases for playgrounds,18/03/2021,336904,657.5,Tudor Environmental
Cultural & Related,Recreation & Sport,Community and Leisure ,Employees,Indirect Employee Expenses,Temporary Staff,30/03/2021,338850,657.98,Adecco Uk Ltd
Planning & Development,Planning Policy,Plan Pol & Transport,Supplies & Services,Services,Training Courses,18/03/2021,335821,661.3,Professional Developmentt/A Government Events
Central Services to the Public,Management & Support Services,Premises & Asset Management,Supplies & Services,Miscellaneous Expenses,Medical Fees,30/03/2021,338876,19,University Hospital Soton Nhs Foundation Trst
Central Services to the Public,Management & Support Services,Finance,Supplies & Services,Miscellaneous Expenses,Medical Fees,30/03/2021,338876,92,University Hospital Soton Nhs Foundation Trst
Environmental & Regulatory,Regulatory Services,Housing and Environmental Health ,Supplies & Services,Miscellaneous Expenses,Medical Fees,30/03/2021,338876,171,University Hospital Soton Nhs Foundation Trst
Environmental & Regulatory,Regulatory Services,Housing and Environmental Health ,Supplies & Services,Miscellaneous Expenses,Medical Fees,30/03/2021,338876,233,University Hospital Soton Nhs Foundation Trst
Central Services to the Public,Management & Support Services,Premises & Asset Management,Supplies & Services,Miscellaneous Expenses,Medical Fees,30/03/2021,338876,271,University Hospital Soton Nhs Foundation Trst
Cultural & Related,Recreation & Sport,Community and Leisure ,Employees,Indirect Employee Expenses,Temporary Staff,25/03/2021,337444,662.22,Adecco Uk Ltd
Cultural & Related,Recreation & Sport,Community and Leisure ,Employees,Indirect Employee Expenses,Temporary Staff,30/03/2021,338855,666.47,Adecco Uk Ltd
Planning & Development,Community Development,Community and Leisure ,Supplies & Services,Grants & Subscriptions,Grants,25/03/2021,338479,800,Longstock Allotment Association
Central Services to the Public,Management & Support Services,Environmental,Supplies & Services,Communications & Computing,Mobile Telephone Charges,25/03/2021,338154,31.5,Vodafone Limited
Central Services to the Public,Management & Support Services,Environmental,Supplies & Services,Communications & Computing,Mobile Telephone Charges,25/03/2021,338154,45.5,Vodafone Limited
Environmental & Regulatory,Waste & Recycling Management,Environmental,Supplies & Services,Communications & Computing,Mobile Telephone Charges,25/03/2021,338154,63.36,Vodafone Limited
Environmental & Regulatory,Street Cleansing (not chargeable to Highways),Environmental,Supplies & Services,Communications & Computing,Mobile Telephone Charges,25/03/2021,338154,147,Vodafone Limited
Environmental & Regulatory,Waste management,Environmental,Supplies & Services,Communications & Computing,Mobile Telephone Charges,25/03/2021,338154,183.5,Vodafone Limited
Cultural & Related,Open Spaces,Environmental,Supplies & Services,Communications & Computing,Mobile Telephone Charges,25/03/2021,338154,196.66,Vodafone Limited
Environmental & Regulatory,Street Cleansing (not chargeable to Highways),Environmental,Supplies & Services,"Equipment, Furniture & Materials",Purchase Equip + Materials,11/03/2021,335833,669.9,Smi Group
Cultural & Related,Recreation & Sport,Community and Leisure ,Employees,Indirect Employee Expenses,Temporary Staff,25/03/2021,338164,670.71,Adecco Uk Ltd
Cultural & Related,Recreation & Sport,Community and Leisure ,Employees,Indirect Employee Expenses,Temporary Staff,25/03/2021,337442,674.96,Adecco Uk Ltd
Cultural & Related,Recreation & Sport,Community and Leisure ,Employees,Indirect Employee Expenses,Temporary Staff,25/03/2021,337452,674.96,Adecco Uk Ltd
Cultural & Related,Recreation & Sport,Community and Leisure ,Employees,Indirect Employee Expenses,Temporary Staff,25/03/2021,337454,674.96,Adecco Uk Ltd
Cultural & Related,Recreation & Sport,Community and Leisure ,Employees,Indirect Employee Expenses,Temporary Staff,25/03/2021,337451,679.2,Adecco Uk Ltd
Environmental & Regulatory,Regulatory Services,Housing and Environmental Health ,Supplies & Services,Grants and subscriptions,Capital Grants,25/03/2021,338395,815.25,Pm Design
Cultural & Related,Open Spaces,Community and Leisure ,Premises related Expenditure,Grounds Maintenance Costs,Gm - Additional Works,30/03/2021,337692,816.75,Wildflower Turf Ltd
Central Services to the Public,Management & Support Services,Environmental,Supplies & Services,"Equipment, Furniture & Materials",Maintenance Equip + Materials,04/03/2021,333612,683.68,Mb Garage Services Ltd
Cultural & Related,Open Spaces,Environmental,Supplies & Services,"Equipment, Furniture & Materials",Purchase Equip + Materials,25/03/2021,338126,686,Tudor Environmental
Environmental & Regulatory,Waste management,Environmental,Employees,Indirect Employee Expenses,Agency Staff - Waged Posts,25/03/2021,331649,690.86,24-7 Staffing
Central Services to the Public,Local Tax Collection,Revenues,Supplies & Services,Communications & Computing,Computer Hardware,04/03/2021,332921,697.52,Exampleit Ltd
Cultural & Related,Open Spaces,Environmental,Supplies & Services,"Equipment, Furniture & Materials",Purchase Equip + Materials,18/03/2021,317660,700,Lister Wilder
Cultural & Related,Recreation & Sport,Community and Leisure ,Employees,Indirect Employee Expenses,Temporary Staff,25/03/2021,337445,700.43,Adecco Uk Ltd
Planning & Development,Development Control,Planning & Building,Supplies & Services,Communications & Computing,Computer Hardware,04/03/2021,333592,700.95,Exampleit Ltd
Central Services to the Public,Management & Support Services,Finance,Supplies & Services,"Printing, Stationery & General Office Expenses",Postage Costs,25/03/2021,337687,705.34,Whistl Uk Ltd
Environmental & Regulatory,Waste management,Environmental,Transport Related Expenditure,Direct Transport Costs,Repair Materials,25/03/2021,338117,710.98,Terberg Matec Uk Limited
Central Services to the Public,Management & Support Services,Finance,Supplies & Services,Services,Insurance ,18/03/2021,337131,857.44,Zurich Insurance Company
Central Services to the Public,Management & Support Services,Premises & Asset Management,Third Party Payments,Other Establishments,Private Contractors,30/03/2021,338539,720,Sonic Scaffolding 2000 Ltd
Planning & Development,Planning Policy,Plan Pol & Transport,Employees,Indirect Employee Expenses,Temporary Staff,30/03/2021,338861,722.5,New Forest District Council
Environmental & Regulatory,Regulatory Services,Housing and Environmental Health ,Supplies & Services,"Equipment, Furniture & Materials",Purchase Equip + Materials,30/03/2021,338428,734.4,Socotec Uk Ltd
Environmental & Regulatory,Waste management,Environmental,Employees,Indirect Employee Expenses,Agency Staff - Waged Posts,25/03/2021,331647,734.84,24-7 Staffing
Environmental & Regulatory,Waste management,Environmental,Employees,Indirect Employee Expenses,Agency Staff - Waged Posts,25/03/2021,336891,737.76,Simple Recruitment Services Ltd
Cultural & Related,Open Spaces,Environmental,Supplies & Services,Miscellaneous Expenses,Waste Collection,25/03/2021,333650,741.36,Collard Enviromental Ltd
Planning & Development,Planning Policy,Plan Pol & Transport,Supplies & Services,Services,Project Consultancy - Policy,25/03/2021,336667,750,Purcell Architecture Ltd
Environmental & Regulatory,Street Cleansing (not chargeable to Highways),Environmental,Supplies & Services,"Equipment, Furniture & Materials",Purchase Equip + Materials,18/03/2021,330788,750,Spaldings (Uk) Limited
Environmental & Regulatory,Street Cleansing (not chargeable to Highways),Environmental,Supplies & Services,"Equipment, Furniture & Materials",Purchase Equip + Materials,25/03/2021,324080,750,Spaldings (Uk) Limited
Central Services,Corporate & Democratic Core,Corporate & Democratic,Supplies & Services,Services,Professional Advice,04/03/2021,335154,750,Dc Commercial Solicitors
Environmental & Regulatory,Waste management,Environmental,Transport Related Expenditure,Direct Transport Costs,Repair Materials,30/03/2021,338873,42,Md Services (Andover) Ltd
Environmental & Regulatory,Waste management,Environmental,Transport Related Expenditure,Direct Transport Costs,Repair Materials,30/03/2021,338873,84,Md Services (Andover) Ltd
Cultural & Related,Open Spaces,Environmental,Transport Related Expenditure,Direct Transport Costs,Repair Materials,30/03/2021,338873,147,Md Services (Andover) Ltd
Environmental & Regulatory,Street Cleansing (not chargeable to Highways),Environmental,Transport Related Expenditure,Direct Transport Costs,Repair Materials,30/03/2021,338873,147,Md Services (Andover) Ltd
Central Services to the Public,Management & Support Services,Environmental,Transport Related Expenditure,Direct Transport Costs,Repair Materials,30/03/2021,338873,331.28,Md Services (Andover) Ltd
Cultural & Related,Open Spaces,Community and Leisure ,Premises related Expenditure,Grounds Maintenance Costs,Gm - Additional Works,30/03/2021,338545,275.53,Pointer Group Ltd
Cultural & Related,Open Spaces,Community and Leisure ,Supplies & Services,"Equipment, Furniture & Materials",Purchase Equip + Materials,30/03/2021,338545,490.37,Pointer Group Ltd
Environmental & Regulatory,Waste management,Environmental,Supplies & Services,"Equipment, Furniture & Materials",Purchase Equip + Materials,30/03/2021,337676,780,Egbert H Taylor & Co Ltd
Cultural & Related,Open Spaces,Environmental,Supplies & Services,Miscellaneous Expenses,Waste Collection,25/03/2021,337677,780.06,Collard Enviromental Ltd
Cultural & Related,Open Spaces,Environmental,Supplies & Services,"Equipment, Furniture & Materials",Purchase Equip + Materials,25/03/2021,337679,787.5,Spaldings (Uk) Limited
Environmental & Regulatory,Waste management,Environmental,Supplies & Services,"Printing, Stationery & General Office Expenses",External Printing,25/03/2021,337121,788.9,Dura-Id Solutions Ltd
Central Services,Corporate & Democratic Core,Corporate & Democratic,Employees,Indirect Employee Expenses,Advertising Of Vacancies,25/03/2021,336684,792,Newsquest Media Group Ltd
Central Services to the Public,Management & Support Services,Premises & Asset Management,Third Party Payments,Other Establishments,Private Contractors,11/03/2021,336665,796.88,Spear Electrical Limited
Cultural & Related,Open Spaces,Environmental,Supplies & Services,"Equipment, Furniture & Materials",Purchase Equip + Materials,18/03/2021,336899,802,Rigby Taylor Ltd
Planning & Development,Community Development,Community and Leisure ,Supplies & Services,Grants & Subscriptions,Grants,25/03/2021,338377,965,North Baddesley Junior School
Central Services to the Public,Management & Support Services,Premises & Asset Management,Third Party Payments,Other Establishments,Private Contractors,18/03/2021,337664,807.54,Spear Electrical Limited
Planning & Development,Development Control,Planning & Building,Supplies & Services,"Printing, Stationery & General Office Expenses",Stationery,04/03/2021,327430,809.4,Lyreco Uk Ltd
Environmental & Regulatory,Regulatory Services,Housing and Environmental Health ,Supplies & Services,Communications & Computing,Telephone Tracking System,11/03/2021,333626,6,Teletrac Navman (Uk) Ltd
Cultural & Related,Open Spaces,Community and Leisure ,Supplies & Services,Communications & Computing,Telephone Tracking System,11/03/2021,333626,6,Teletrac Navman (Uk) Ltd
Cultural & Related,Open Spaces,Community and Leisure ,Supplies & Services,Communications & Computing,Telephone Tracking System,11/03/2021,333626,6,Teletrac Navman (Uk) Ltd
"Highways, Roads & Transport",Parking Services,Plan Pol & Transport,Supplies & Services,Communications & Computing,Telephone Tracking System,11/03/2021,333626,6,Teletrac Navman (Uk) Ltd
Environmental & Regulatory,Regulatory Services,Housing and Environmental Health ,Supplies & Services,Communications & Computing,Telephone Tracking System,11/03/2021,333626,12,Teletrac Navman (Uk) Ltd
"Highways, Roads & Transport",Parking Services,Plan Pol & Transport,Supplies & Services,Communications & Computing,Telephone Tracking System,11/03/2021,333626,12,Teletrac Navman (Uk) Ltd
Environmental & Regulatory,Waste management,Environmental,Supplies & Services,Communications & Computing,Telephone Tracking System,11/03/2021,333626,12,Teletrac Navman (Uk) Ltd
Central Services to the Public,Management & Support Services,Environmental,Supplies & Services,Communications & Computing,Telephone Tracking System,11/03/2021,333626,12,Teletrac Navman (Uk) Ltd
Environmental & Regulatory,Waste & Recycling Management,Environmental,Supplies & Services,Communications & Computing,Telephone Tracking System,11/03/2021,333626,36,Teletrac Navman (Uk) Ltd
Central Services to the Public,Management & Support Services,Premises & Asset Management,Supplies & Services,Communications & Computing,Telephone Tracking System,11/03/2021,333626,48,Teletrac Navman (Uk) Ltd
Environmental & Regulatory,Waste management,Environmental,Supplies & Services,Communications & Computing,Telephone Tracking System,11/03/2021,333626,158,Teletrac Navman (Uk) Ltd
Environmental & Regulatory,Street Cleansing (not chargeable to Highways),Environmental,Supplies & Services,Communications & Computing,Telephone Tracking System,11/03/2021,333626,174.7,Teletrac Navman (Uk) Ltd
Cultural & Related,Open Spaces,Environmental,Supplies & Services,Communications & Computing,Telephone Tracking System,11/03/2021,333626,321.99,Teletrac Navman (Uk) Ltd
Cultural & Related,Recreation & Sport,Community and Leisure ,Employees,Indirect Employee Expenses,Temporary Staff,25/03/2021,337441,810.8,Adecco Uk Ltd
Cultural & Related,Open Spaces,Environmental,Supplies & Services,"Equipment, Furniture & Materials",Purchase Equip + Materials,04/03/2021,330990,937.6,Rigby Taylor Ltd
Cultural & Related,Recreation & Sport,Community and Leisure ,Employees,Indirect Employee Expenses,Temporary Staff,25/03/2021,337448,815.04,Adecco Uk Ltd
Environmental & Regulatory,Waste management,Environmental,Transport Related Expenditure,Direct Transport Costs,Repair Materials,25/03/2021,338109,96.06,Dennis Eagle Ltd
Central Services to the Public,Management & Support Services,Environmental,Transport Related Expenditure,Direct Transport Costs,Repair Materials,25/03/2021,338109,730.1,Dennis Eagle Ltd
Central Services to the Public,Local Tax Collection,Revenues,Supplies & Services,Communications & Computing,Computer Hardware,30/03/2021,339032,82.9,Bmi Solutions
Central Services to the Public,Local Tax Collection,Revenues,Supplies & Services,Communications & Computing,Computer Hardware,30/03/2021,339032,207.25,Bmi Solutions
Housing Services,Housing Benefits ,Revenues,Supplies & Services,Communications & Computing,Computer Software,30/03/2021,339032,207.25,Bmi Solutions
Central Services to the Public,Local Tax Collection,Revenues,Supplies & Services,Communications & Computing,Computer Hardware,30/03/2021,339032,331.6,Bmi Solutions
Central Services to the Public,Elections,Legal & Democratic,Supplies & Services,"Printing, Stationery & General Office Expenses",Postage Costs,04/03/2021,333627,829.61,Royal Mail Group Ltd
Environmental & Regulatory,Waste management,Environmental,Transport Related Expenditure,Direct Transport Costs,Repair Materials,11/03/2021,335213,832.98,Dennis Eagle Ltd
Planning & Development,Community Development,Community and Leisure ,Supplies & Services,Grants & Subscriptions,Grants,30/03/2021,339063,1000,Chat Together
Planning & Development,Community Development,Community and Leisure ,Supplies & Services,Grants & Subscriptions,Grants,30/03/2021,339073,1000,Spotlight Uk
Planning & Development,Community Development,Community and Leisure ,Supplies & Services,Grants & Subscriptions,Grants,11/03/2021,337120,1000,Houghton Parish Council
Planning & Development,Community Development,Community and Leisure ,Supplies & Services,Grants & Subscriptions,Grants,25/03/2021,338378,1000,Test Valley School
Planning & Development,Community Development,Community and Leisure ,Supplies & Services,Grants & Subscriptions,Grants,25/03/2021,338379,1000,Ampfield Village Hall
Planning & Development,Community Development,Community and Leisure ,Supplies & Services,Grants & Subscriptions,Grants,25/03/2021,338528,1000,Kings Somborne Parish Council
Planning & Development,Community Development,Community and Leisure ,Supplies & Services,Grants & Subscriptions,Grants,30/03/2021,339074,1000,Cupernham Junior School
Planning & Development,Community Development,Community and Leisure ,Supplies & Services,Grants & Subscriptions,Grants,04/03/2021,335149,1000,Valley Park Parish Council
Planning & Development,Community Development,Community and Leisure ,Supplies & Services,Grants & Subscriptions,Grants,18/03/2021,337776,1000,Kings Somborne School Association (Kssa)
Planning & Development,Community Development,Community and Leisure ,Supplies & Services,Grants & Subscriptions,Grants,25/03/2021,338376,1000,Endeavour Primary School
Central Services to the Public,Management & Support Services,Premises & Asset Management,Premises related Expenditure,Energy Costs,Gas,30/03/2021,338829,847.11,Total Gas & Power Ltd
Cultural & Related,Open Spaces,Environmental,Supplies & Services,Miscellaneous Expenses,Waste Collection,18/03/2021,330770,852.3,Collard Enviromental Ltd
Cultural & Related,Open Spaces,Community and Leisure ,Premises related Expenditure,Grounds Maintenance Costs,Gm - Additional Works,25/03/2021,338138,860,Purbeck Civil Engineering Limited
Central Services to the Public,Management & Support Services,Premises & Asset Management,Supplies & Services,"Equipment, Furniture & Materials",Equipment Hire,11/03/2021,335845,862.5,Crown Water & Coffee
Central Services to the Public,Elections,Legal & Democratic,Supplies & Services,"Printing, Stationery & General Office Expenses",Postage Costs,18/03/2021,336988,869.97,Financial Data Management Plc
Cultural & Related,Open Spaces,Environmental,Supplies & Services,"Equipment, Furniture & Materials",Purchase Equip + Materials,30/03/2021,335224,891.88,Tudor Environmental
Central Services to the Public,Management & Support Services,Legal & Democratic,Supplies & Services,Services,Legal Fees,11/03/2021,331706,900,Personal Data - Data Protection Act 1998
Cultural & Related,Recreation & Sport,Community and Leisure ,Supplies & Services,Services,Training Courses,11/03/2021,336923,905,Right Directions
Central Services to the Public,Management & Support Services,Environmental,Supplies & Services,Miscellaneous Expenses,Vehicle insurance claims,25/03/2021,337642,911.07,Argosy Ltd T/A Andover Self Drive
"Highways, Roads & Transport",Public Transport,Plan Pol & Transport,Third Party Payments,Transport Operators in Respect of Concessionary Fares,Voluntary Orgs Reimbursement,30/03/2021,337130,1097,Andover Neighbourcare
Central Services to the Public,Management & Support Services,Premises & Asset Management,Third Party Payments,Other Establishments,Private Contractors,11/03/2021,336660,929.72,Spear Electrical Limited
Central Services to the Public,Management & Support Services,Legal & Democratic,Supplies & Services,Services,Legal Fees,30/03/2021,337686,943.5,Wilkin Chapman Llp
Central Services to the Public,Management & Support Services,Premises & Asset Management,Third Party Payments,Other Establishments,Private Contractors,11/03/2021,335836,953.94,Spear Electrical Limited
Environmental & Regulatory,Waste & Recycling Management,Environmental,Transport Related Expenditure,Direct Transport Costs,Repair Materials,04/03/2021,334467,956.98,Hyphose Ltd
Environmental & Regulatory,Waste management,Environmental,Employees,Indirect Employee Expenses,Agency Staff - Waged Posts,25/03/2021,338141,148.67,24-7 Staffing
Environmental & Regulatory,Waste management,Environmental,Employees,Indirect Employee Expenses,Agency Staff - Waged Posts,25/03/2021,338141,815.89,24-7 Staffing
Cultural & Related,Recreation & Sport,Community and Leisure ,Supplies & Services,"Equipment, Furniture & Materials",Purchase Equip + Materials,11/03/2021,335830,1158.5,Defibshop
Environmental & Regulatory,Waste management,Environmental,Transport Related Expenditure,Direct Transport Costs,External Garages,04/03/2021,334465,967.32,Dennis Eagle Ltd
Central Services to the Public,Management & Support Services,Premises & Asset Management,Premises related Expenditure,Repairs Alterations & Maintenance of Buildings,General Repairs,25/03/2021,338184,975.74,Sse Contracting Ltd
Environmental & Regulatory,Regulatory Services,Housing and Environmental Health ,Supplies & Services,Grants and subscriptions,Capital Grants,25/03/2021,338384,1175.46,A & E Builders
Central Services to the Public,Management & Support Services,Premises & Asset Management,Third Party Payments,Other Establishments,Private Contractors,11/03/2021,336664,994.43,Spear Electrical Limited
Planning & Development,Economic Development,Planning Policy & Economic Development ,Supplies & Services,Grants & Subscriptions,Subscriptions,11/03/2021,336900,1000,Business South Ltd
Planning & Development,Economic Development,Planning Policy & Economic Development ,Supplies & Services,Grants & Subscriptions,Subscriptions,30/03/2021,339082,1000,Business South Ltd
"Highways, Roads & Transport",Public Transport,Plan Pol & Transport,Third Party Payments,Transport Operators in Respect of Concessionary Fares,Voluntary Orgs Reimbursement,30/03/2021,338334,1210,Andover Neighbourcare
Central Services to the Public,Elections,Legal & Democratic,Supplies & Services,"Printing, Stationery & General Office Expenses",Postage Costs,25/03/2021,337763,1010.49,Financial Data Management Plc
Central Services to the Public,Management & Support Services,Premises & Asset Management,Premises related Expenditure,Energy Costs,Gas,11/03/2021,333637,1020.34,Total Gas & Power Ltd
Central Services to the Public,Management & Support Services,Revenues,Supplies & Services,Communications & Computing,Computer Hardware,11/03/2021,332647,1025,Abavus Limited
Central Services to the Public,Management & Support Services,Finance,Supplies & Services,Services,Professional Fees,25/03/2021,333589,1033.5,Dc Commercial Solicitors
Cultural & Related,Open Spaces,Community and Leisure ,Premises related Expenditure,Grounds Maintenance Costs,Gm - Additional Works,30/03/2021,338132,1037,Keep Britain Tidy
Central Services,Corporate & Democratic Core,Corporate & Democratic,Supplies & Services,Miscellaneous Expenses,Design Fees,25/03/2021,337438,1073,Cammegh Davies Fleming
Central Services to the Public,Management & Support Services,Premises & Asset Management,Premises related Expenditure,Repairs Alterations & Maintenance of Buildings,General Repairs,18/03/2021,337750,1074.17,Sse Contracting Ltd
Cultural & Related,Open Spaces,Environmental,Transport Related Expenditure,Direct Transport Costs,Repair Materials,04/03/2021,333606,1079.72,Hunt Forest Group Ltd
Central Services to the Public,Management & Support Services,Premises & Asset Management,Premises related Expenditure,Cleaning and domestic supplies,Window Cleaning,11/03/2021,335855,1082,Allclean Windows Limited
Environmental & Regulatory,Waste management,Environmental,Employees,Indirect Employee Expenses,Agency Staff - Waged Posts,25/03/2021,338346,1099.53,24-7 Staffing
Cultural & Related,Recreation & Sport,Community and Leisure ,Premises related Expenditure,Repairs Alterations & Maintenance of Buildings,Planned Maintenance - Non Est,11/03/2021,337009,221.38,Healthy Buildings International
Cultural & Related,Recreation & Sport,Community and Leisure ,Premises related Expenditure,Repairs Alterations & Maintenance of Buildings,Planned Maintenance - Non Est,11/03/2021,337009,221.38,Healthy Buildings International
Cultural & Related,Recreation & Sport,Community and Leisure ,Premises related Expenditure,Repairs Alterations & Maintenance of Buildings,Planned Maintenance - Non Est,11/03/2021,337009,221.38,Healthy Buildings International
Cultural & Related,Recreation & Sport,Community and Leisure ,Premises related Expenditure,Repairs Alterations & Maintenance of Buildings,Planned Maintenance - Non Est,11/03/2021,337009,221.38,Healthy Buildings International
Cultural & Related,Recreation & Sport,Community and Leisure ,Premises related Expenditure,Repairs Alterations & Maintenance of Buildings,Planned Maintenance - Non Est,11/03/2021,337009,221.38,Healthy Buildings International
Environmental & Regulatory,Waste management,Environmental,Transport Related Expenditure,Direct Transport Costs,Repair Materials,30/03/2021,338880,1111.1,Dennis Eagle Ltd
Cultural & Related,Recreation & Sport,Community and Leisure ,Premises related Expenditure,Grounds Maintenance Costs,Gm - Additional Works,18/03/2021,337133,1120,Personal Data - Data Protection Act 1998
Central Services to the Public,Management & Support Services,Finance,Supplies & Services,"Printing, Stationery & General Office Expenses",Postage Costs,18/03/2021,337123,1127.99,Whistl Uk Ltd
Central Services to the Public,Management & Support Services,Finance,Supplies & Services,Services,Professional Fees,25/03/2021,338353,1363.7,Cabinet Office
Cultural & Related,Culture & Heritage,Premises & Asset Management,Premises related Expenditure,Repairs Alterations & Maintenance of Buildings,Planned Maintenance - Non Est,04/03/2021,333668,20.09,Temple Lifts Ltd
Cultural & Related,Tourism,Planning Policy & Economic Development ,Premises related Expenditure,Repairs Alterations & Maintenance of Buildings,Planned Maintenance - Non Est,04/03/2021,333668,70.99,Temple Lifts Ltd
Cultural & Related,Recreation & Sport,Community and Leisure ,Premises related Expenditure,Repairs Alterations & Maintenance of Buildings,Planned Maintenance - Non Est,04/03/2021,333668,210,Temple Lifts Ltd
Central Services to the Public,Management & Support Services,Premises & Asset Management,Premises related Expenditure,Repairs Alterations & Maintenance of Buildings,Planned Maintenance - Non Est,04/03/2021,333668,840,Temple Lifts Ltd
"Highways, Roads & Transport",Parking Services,Plan Pol & Transport,Supplies & Services,Services,Professional Fees,11/03/2021,336623,0,Marston (Holdings) Ltd
Central Services to the Public,Management & Support Services,Premises & Asset Management,Premises related Expenditure,Repairs Alterations & Maintenance of Buildings,General Repairs,04/03/2021,333598,1150,Hrg Tree Services Ltd
Planning & Development,Development Control,Planning & Building,Supplies & Services,Services,Legal Fees,30/03/2021,338199,1200,Sharpe Pritchard Llp
Housing Services,Housing Benefits ,Revenues,Supplies & Services,Grants & Subscriptions,Subscriptions,04/03/2021,333587,1200,Irrv Hq
Cultural & Related,Open Spaces,Environmental,Transport Related Expenditure,Direct Transport Costs,Repair Materials,18/03/2021,336995,1216.88,Sparks Commercial Services Ltd
Environmental & Regulatory,Street Cleansing (not chargeable to Highways),Environmental,Supplies & Services,"Equipment, Furniture & Materials",Purchase Equip + Materials,18/03/2021,336890,1218.44,Gm Sweepers Uk Ltd
Cultural & Related,Recreation & Sport,Community and Leisure ,Premises related Expenditure,Grounds Maintenance Costs,Gm - Additional Works,30/03/2021,338864,1223.2,Landmark Timber
Planning & Development,Development Control,Planning & Building,Supplies & Services,Services,Legal Fees,04/03/2021,330366,1225,Cornerstone Barristers
Environmental & Regulatory,Waste management,Environmental,Transport Related Expenditure,Direct Transport Costs,Repair Materials,11/03/2021,336871,1233.65,Terberg Matec Uk Limited
Central Services to the Public,Management & Support Services,Premises & Asset Management,Third Party Payments,Other Establishments,Private Contractors,18/03/2021,337767,1254.17,Tsg Building Services Plc
Central Services,Corporate & Democratic Core,Corporate & Democratic,Supplies & Services,Communications & Computing,Software Maintenance,11/03/2021,335223,1275,Advanced Business Solutions
Central Services to the Public,Management & Support Services,Finance,Supplies & Services,Services,Insurance ,11/03/2021,336685,1543.46,Legal & General Assurance Society Ltd
Central Services to the Public,Management & Support Services,Premises & Asset Management,Third Party Payments,Other Establishments,Private Contractors,18/03/2021,337439,1288,Empire Industrial Doors Ltd
Cultural & Related,Open Spaces,Environmental,Supplies & Services,"Equipment, Furniture & Materials",Purchase Equip + Materials,25/03/2021,338128,1311.26,Tudor Environmental
Central Services,Corporate & Democratic Core,Corporate & Democratic,Supplies & Services,Grants & Subscriptions,Subscriptions,25/03/2021,338407,1313.44,Eastleigh Borough Council
Central Services to the Public,Management & Support Services,Environmental,Supplies & Services,"Equipment, Furniture & Materials",Maintenance Equip + Materials,30/03/2021,338872,1315.52,Triscan Systems Ltd
Environmental & Regulatory,Waste management,Environmental,Employees,Indirect Employee Expenses,Agency Staff - Waged Posts,25/03/2021,338140,1319.58,24-7 Staffing
Planning & Development,Planning Policy,Plan Pol & Transport,Supplies & Services,Grants & Subscriptions,Grants,25/03/2021,335832,1595.23,Hampshire County Council
Central Services to the Public,Local Tax Collection,Revenues,Supplies & Services,Miscellaneous Expenses,Data Access Requests,25/03/2021,338419,1600,Tameside Mbc
Environmental & Regulatory,Waste management,Environmental,Employees,Indirect Employee Expenses,Agency Staff - Waged Posts,04/03/2021,333652,25.06,24-7 Staffing
Environmental & Regulatory,Street Cleansing (not chargeable to Highways),Environmental,Employees,Indirect Employee Expenses,Agency Staff - Waged Posts,04/03/2021,333652,647.13,24-7 Staffing
Environmental & Regulatory,Waste management,Environmental,Employees,Indirect Employee Expenses,Agency Staff - Waged Posts,04/03/2021,333652,684.72,24-7 Staffing
Cultural & Related,Open Spaces,Community and Leisure ,Third Party Payments,Private contractors,Main Contractor Costs,04/03/2021,333670,1387.5,East Brothers (Timber) Ltd
Environmental & Regulatory,Street Cleansing (not chargeable to Highways),Environmental,Supplies & Services,Miscellaneous Expenses,Hazardous / Fly Tipped Waste,25/03/2021,337017,1400,Bkp Waste & Recycling Ltd
Cultural & Related,Culture & Heritage,Community and Leisure ,Third Party Payments,Private contractors,Main Contractor Costs,04/03/2021,333226,1402.42,Spear Electrical Limited
"Highways, Roads & Transport",Parking Services,Plan Pol & Transport,Supplies & Services,Grants & Subscriptions,Subscriptions,04/03/2021,332916,1404.3,British Parking Association
Environmental & Regulatory,Waste management,Environmental,Employees,Indirect Employee Expenses,Agency Staff - Waged Posts,30/03/2021,338542,1416.7,24-7 Staffing
Central Services to the Public,Management & Support Services,IT,Supplies & Services,Communications & Computing,Hardware Maintenance,25/03/2021,336924,1446.4,Redway Networks Ltd
Central Services to the Public,Management & Support Services,Estates and Economic Development ,Third Party Payments,Private contractors,Main Contractor Costs,18/03/2021,337761,1450,Fieldform
Cultural & Related,Open Spaces,Community and Leisure ,Premises related Expenditure,Repairs Alterations & Maintenance of Buildings,Estates premises costs - AMP,25/03/2021,338189,1460,Austin Foot Ecology
Environmental & Regulatory,Regulatory Services,Housing and Environmental Health ,Transport Related Expenditure,Direct Transport Costs,Repair Materials,25/03/2021,337644,4.64,Md Services (Andover) Ltd
Environmental & Regulatory,Regulatory Services,Housing and Environmental Health ,Transport Related Expenditure,Direct Transport Costs,Repair Materials,25/03/2021,337644,4.64,Md Services (Andover) Ltd
"Highways, Roads & Transport",Parking Services,Plan Pol & Transport,Transport Related Expenditure,Direct Transport Costs,Repair Materials,25/03/2021,337644,4.64,Md Services (Andover) Ltd
Environmental & Regulatory,Waste management,Environmental,Transport Related Expenditure,Direct Transport Costs,Repair Materials,25/03/2021,337644,6.96,Md Services (Andover) Ltd
Central Services to the Public,Management & Support Services,Environmental,Transport Related Expenditure,Direct Transport Costs,Repair Materials,25/03/2021,337644,6.96,Md Services (Andover) Ltd
Central Services to the Public,Management & Support Services,Premises & Asset Management,Transport Related Expenditure,Direct Transport Costs,Repair Materials,25/03/2021,337644,11.6,Md Services (Andover) Ltd
Central Services to the Public,Management & Support Services,Environmental,Supplies & Services,"Equipment, Furniture & Materials",Purchase Tools,25/03/2021,337644,11.7,Md Services (Andover) Ltd
Environmental & Regulatory,Waste management,Environmental,Transport Related Expenditure,Direct Transport Costs,Repair Materials,25/03/2021,337644,85.84,Md Services (Andover) Ltd
Environmental & Regulatory,Street Cleansing (not chargeable to Highways),Environmental,Transport Related Expenditure,Direct Transport Costs,Repair Materials,25/03/2021,337644,127.6,Md Services (Andover) Ltd
Cultural & Related,Open Spaces,Environmental,Transport Related Expenditure,Direct Transport Costs,Repair Materials,25/03/2021,337644,164.72,Md Services (Andover) Ltd
Central Services to the Public,Management & Support Services,Environmental,Transport Related Expenditure,Direct Transport Costs,Workshop Consumables,25/03/2021,337644,169.9,Md Services (Andover) Ltd
Central Services to the Public,Management & Support Services,Environmental,Transport Related Expenditure,Direct Transport Costs,Repair Materials,25/03/2021,337644,870.66,Md Services (Andover) Ltd
Central Services to the Public,Management & Support Services,Premises & Asset Management,Supplies & Services,"Equipment, Furniture & Materials",Maintenance Equip + Materials,25/03/2021,331907,1470.88,Vp-Av Ltd
Central Services to the Public,Management & Support Services,Premises & Asset Management,Premises related Expenditure,Repairs Alterations & Maintenance of Buildings,Planned Maintenance - Non Est,25/03/2021,338188,48.03,Healthy Buildings International
External Trading Accounts,Business Parks,Premises & Asset Management,Premises related Expenditure,Repairs Alterations & Maintenance of Buildings,Planned Maintenance - Non Est,25/03/2021,338188,48.03,Healthy Buildings International
Cultural & Related,Culture & Heritage,Premises & Asset Management,Premises related Expenditure,Repairs Alterations & Maintenance of Buildings,Planned Maintenance - Non Est,25/03/2021,338188,48.03,Healthy Buildings International
Cultural & Related,Culture & Heritage,Premises & Asset Management,Premises related Expenditure,Repairs Alterations & Maintenance of Buildings,Planned Maintenance - Non Est,25/03/2021,338188,48.03,Healthy Buildings International
Cultural & Related,Culture & Heritage,Premises & Asset Management,Premises related Expenditure,Repairs Alterations & Maintenance of Buildings,Planned Maintenance - Non Est,25/03/2021,338188,48.03,Healthy Buildings International
Cultural & Related,Culture & Heritage,Premises & Asset Management,Premises related Expenditure,Repairs Alterations & Maintenance of Buildings,Planned Maintenance - Non Est,25/03/2021,338188,48.03,Healthy Buildings International
Cultural & Related,Culture & Heritage,Premises & Asset Management,Premises related Expenditure,Repairs Alterations & Maintenance of Buildings,Planned Maintenance - Non Est,25/03/2021,338188,48.03,Healthy Buildings International
Cultural & Related,Culture & Heritage,Premises & Asset Management,Premises related Expenditure,Repairs Alterations & Maintenance of Buildings,Planned Maintenance - Non Est,25/03/2021,338188,48.03,Healthy Buildings International
Central Services to the Public,Management & Support Services,Premises & Asset Management,Premises related Expenditure,Repairs Alterations & Maintenance of Buildings,Planned Maintenance - Non Est,25/03/2021,338188,48.03,Healthy Buildings International
Central Services to the Public,Management & Support Services,Premises & Asset Management,Premises related Expenditure,Repairs Alterations & Maintenance of Buildings,Planned Maintenance - Non Est,25/03/2021,338188,48.03,Healthy Buildings International
Central Services to the Public,Management & Support Services,Premises & Asset Management,Premises related Expenditure,Repairs Alterations & Maintenance of Buildings,Planned Maintenance - Non Est,25/03/2021,338188,48.03,Healthy Buildings International
Cultural & Related,Recreation & Sport,Community and Leisure ,Premises related Expenditure,Repairs Alterations & Maintenance of Buildings,Planned Maintenance - Non Est,25/03/2021,338188,48.03,Healthy Buildings International
Cultural & Related,Recreation & Sport,Community and Leisure ,Premises related Expenditure,Repairs Alterations & Maintenance of Buildings,Planned Maintenance - Non Est,25/03/2021,338188,48.03,Healthy Buildings International
Cultural & Related,Recreation & Sport,Community and Leisure ,Premises related Expenditure,Repairs Alterations & Maintenance of Buildings,Planned Maintenance - Non Est,25/03/2021,338188,48.03,Healthy Buildings International
Cultural & Related,Recreation & Sport,Community and Leisure ,Premises related Expenditure,Repairs Alterations & Maintenance of Buildings,Planned Maintenance - Non Est,25/03/2021,338188,48.03,Healthy Buildings International
Cultural & Related,Recreation & Sport,Community and Leisure ,Premises related Expenditure,Repairs Alterations & Maintenance of Buildings,Planned Maintenance - Non Est,25/03/2021,338188,48.03,Healthy Buildings International
Cultural & Related,Recreation & Sport,Community and Leisure ,Premises related Expenditure,Repairs Alterations & Maintenance of Buildings,Planned Maintenance - Non Est,25/03/2021,338188,48.03,Healthy Buildings International
Cultural & Related,Recreation & Sport,Community and Leisure ,Premises related Expenditure,Repairs Alterations & Maintenance of Buildings,Planned Maintenance - Non Est,25/03/2021,338188,48.03,Healthy Buildings International
Cultural & Related,Recreation & Sport,Community and Leisure ,Premises related Expenditure,Repairs Alterations & Maintenance of Buildings,Planned Maintenance - Non Est,25/03/2021,338188,48.03,Healthy Buildings International
Environmental & Regulatory,"Cemetery, Cremation and Mortuary Services",Community and Leisure ,Premises related Expenditure,Repairs Alterations & Maintenance of Buildings,Planned Maintenance - Non Est,25/03/2021,338188,48.03,Healthy Buildings International
Environmental & Regulatory,"Cemetery, Cremation and Mortuary Services",Community and Leisure ,Premises related Expenditure,Repairs Alterations & Maintenance of Buildings,Planned Maintenance - Non Est,25/03/2021,338188,48.03,Healthy Buildings International
Cultural & Related,Open Spaces,Community and Leisure ,Premises related Expenditure,Repairs Alterations & Maintenance of Buildings,Planned Maintenance - Non Est,25/03/2021,338188,48.03,Healthy Buildings International
Cultural & Related,Culture & Heritage,Community and Leisure ,Premises related Expenditure,Repairs Alterations & Maintenance of Buildings,Planned Maintenance - Non Est,25/03/2021,338188,48.03,Healthy Buildings International
"Highways, Roads & Transport",Parking Services,Plan Pol & Transport,Premises related Expenditure,Repairs Alterations & Maintenance of Buildings,Planned Maintenance - Non Est,25/03/2021,338188,48.03,Healthy Buildings International
Cultural & Related,Culture & Heritage,Premises & Asset Management,Premises related Expenditure,Repairs Alterations & Maintenance of Buildings,Planned Maintenance - Non Est,25/03/2021,338188,96.06,Healthy Buildings International
Environmental & Regulatory,Regulatory Services,Premises & Asset Management,Premises related Expenditure,Repairs Alterations & Maintenance of Buildings,Planned Maintenance - Non Est,25/03/2021,338188,96.06,Healthy Buildings International
External Trading Accounts,Business Parks,Premises & Asset Management,Premises related Expenditure,Repairs Alterations & Maintenance of Buildings,Planned Maintenance - Non Est,25/03/2021,338188,144.09,Healthy Buildings International
External Trading Accounts,Business Parks,Premises & Asset Management,Supplies & Services,Services,Professional Fees,30/03/2021,338842,1500,Vail Williams Llp
Environmental & Regulatory,Regulatory Services,Housing and Environmental Health ,Supplies & Services,Grants and subscriptions,Capital Grants,25/03/2021,338385,1824.54,B J C Design
Environmental & Regulatory,Waste management,Environmental,Employees,Indirect Employee Expenses,Agency Staff - Waged Posts,11/03/2021,337012,1538.21,24-7 Staffing
Planning & Development,Development Control,Planning & Building,Supplies & Services,"Equipment, Furniture & Materials",Maintenance Of Tools,30/03/2021,336876,1546.5,Pitney Bowes Limited
Central Services to the Public,Management & Support Services,Environmental,Supplies & Services,"Equipment, Furniture & Materials",Maintenance Equip + Materials,11/03/2021,336618,1559.47,Triscan Systems Ltd
Cultural & Related,Regulatory Services,Community and Leisure ,Third Party Payments,Private contractors,Main Contractor Costs,30/03/2021,339144,1927,Valley Park Community Association
Planning & Development,Economic Development,Planning Policy & Economic Development ,Supplies & Services,Services,Training Courses,11/03/2021,336608,1940,Combined Independent (Holdings) Ltd
Cultural & Related,Recreation & Sport,Community and Leisure ,Supplies & Services,Services,Project Consultancy - Policy,25/03/2021,337694,1650,Continuum Sport & Leisure Ltd
Cultural & Related,Open Spaces,Community and Leisure ,Premises related Expenditure,Grounds Maintenance Costs,Gm - Additional Works,11/03/2021,337021,1677.21,Landmark Timber
Environmental & Regulatory,Waste management,Environmental,Employees,Indirect Employee Expenses,Agency Staff - Waged Posts,25/03/2021,338145,1681.91,24-7 Staffing
Central Services to the Public,Management & Support Services,Premises & Asset Management,Supplies & Services,Services,Professional Fees,30/03/2021,338883,1745,Milestone Transport Planning Ltd
External Trading Accounts,Business Parks,Premises & Asset Management,Supplies & Services,Services,Legal Fees,11/03/2021,335137,1750,Talbot Walker Llp
Cultural & Related,Culture & Heritage,Premises & Asset Management,Supplies & Services,Services,Legal Fees,30/03/2021,338467,1756,Talbot Walker Llp
Cultural & Related,Open Spaces,Environmental,Transport Related Expenditure,Direct Transport Costs,Repair Materials,25/03/2021,337657,1773.16,King Feeders Uk
Environmental & Regulatory,Regulatory Services,Housing and Environmental Health ,Supplies & Services,"Equipment, Furniture & Materials",Purchase Equip + Materials,25/03/2021,315762,1839.96,Killgerm Chemicals Ltd
Cultural & Related,Open Spaces,Environmental,Supplies & Services,"Equipment, Furniture & Materials",Purchases for playgrounds,18/03/2021,337755,1876.47,Md Services (Andover) Ltd
Central Services to the Public,Management & Support Services,Finance,Supplies & Services,Grants & Subscriptions,Subscriptions,04/03/2021,333609,1905,Cipfa
Environmental & Regulatory,Street Cleansing (not chargeable to Highways),Environmental,Transport Related Expenditure,Direct Transport Costs,Tyres,11/03/2021,335214,72.65,Tructyre Ats
Cultural & Related,Open Spaces,Environmental,Transport Related Expenditure,Direct Transport Costs,Tyres,11/03/2021,335214,140.31,Tructyre Ats
Environmental & Regulatory,Waste management,Environmental,Transport Related Expenditure,Direct Transport Costs,Tyres,11/03/2021,335214,1694.18,Tructyre Ats
Environmental & Regulatory,Street Cleansing (not chargeable to Highways),Environmental,Supplies & Services,"Equipment, Furniture & Materials",Purchase Equip + Materials,25/03/2021,338358,1932,Glasdon Uk Ltd
Central Services to the Public,Management & Support Services,Estates and Economic Development ,Third Party Payments,Private contractors,Main Contractor Costs,30/03/2021,338863,1980,Fernden Construction (Winchester) Ltd
Environmental & Regulatory,Regulatory Services,Housing and Environmental Health ,Supplies & Services,Miscellaneous Expenses,Kennel fees,11/03/2021,335216,1890.72,Three Oak Boarding Kennels
Cultural & Related,Culture & Heritage,Premises & Asset Management,Supplies & Services,"Printing, Stationery & General Office Expenses",Licences / Affiliation Fees,04/03/2021,333219,2396,Hampshire County Council
Cultural & Related,Open Spaces,Environmental,Supplies & Services,"Equipment, Furniture & Materials",Purchases for playgrounds,25/03/2021,336898,2028,Jrb Enterpise Ltd
Central Services to the Public,Management & Support Services,Estates and Economic Development ,Third Party Payments,Private contractors,Main Contractor Costs,30/03/2021,338862,2039,Fernden Construction (Winchester) Ltd
Central Services to the Public,Management & Support Services,Premises & Asset Management,Premises related Expenditure,Repairs Alterations & Maintenance of Buildings,General Repairs,30/03/2021,337472,2041.5,Kieron Beattie Landscaping Ltd
Central Services to the Public,Management & Support Services,IT,Supplies & Services,Communications & Computing,Communication Links,30/03/2021,338533,2066.51,Zen Internet Limited
Cultural & Related,Open Spaces,Environmental,Supplies & Services,"Equipment, Furniture & Materials",Purchases for playgrounds,25/03/2021,336654,2102.02,Gb Sport & Leisure Uk Ltd
Cultural & Related,Open Spaces,Community and Leisure ,Premises related Expenditure,Grounds Maintenance Costs,Gm - Additional Works,25/03/2021,332660,2119.98,Pictorial Meadows Limited
Central Services to the Public,Management & Support Services,Premises & Asset Management,Supplies & Services,Services,Professional Fees,30/03/2021,338878,2120.8,Dentons Ukmea Llp
Planning & Development,Building Control,Planning & Building,Supplies & Services,Grants & Subscriptions,Subscriptions,18/03/2021,337457,2170.79,Labc Co. Uk
Cultural & Related,Open Spaces,Community and Leisure ,Supplies & Services,Communications & Computing,Software Maintenance,30/03/2021,331683,2185,R & A Information Systems Ltd
Central Services to the Public,Management & Support Services,Premises & Asset Management,Supplies & Services,Grants & Subscriptions,Subscriptions,30/03/2021,338887,2200,Royal Institution Of Chartered Surveyors
"Highways, Roads & Transport",Highways and roads - maintenance,Plan Pol & Transport,Third Party Payments,Private contractors,Main Contractor Costs,30/03/2021,338846,2201.8,Sse Contracting Ltd
Central Services to the Public,Management & Support Services,IT,Supplies & Services,Communications & Computing,Communication Links,30/03/2021,338547,2212,Hampshire County Council
Cultural & Related,Open Spaces,Environmental,Supplies & Services,"Equipment, Furniture & Materials",Purchase Equip + Materials,25/03/2021,337019,2219.8,Spaldings (Uk) Limited
Central Services to the Public,Management & Support Services,IT,Support Services,IT,IT Hardware costs,30/03/2021,338426,2255.7,Bt Business Direct
Central Services to the Public,Management & Support Services,Legal & Democratic,Supplies & Services,Communications & Computing,Software Maintenance,25/03/2021,338176,2261.09,Civica Uk Ltd
Central Services to the Public,Management & Support Services,IT,Supplies & Services,Services,Training Courses,04/03/2021,333591,2333.25,Qa Limited
Central Services to the Public,Management & Support Services,HR Services,Third Party Payments,Other Local Authorities,Shared Service Contract Costs,04/03/2021,333585,2396.16,Mhr International Uk Ltd
Central Services to the Public,Management & Support Services,HR Services,Third Party Payments,Other Local Authorities,Shared Service Contract Costs,30/03/2021,338941,2396.16,Mhr International Uk Ltd
Planning & Development,Planning Policy,Plan Pol & Transport,Supplies & Services,Services,Project Consultancy - Policy,30/03/2021,338548,2475,Opinion Research Services
Environmental & Regulatory,Street Cleansing (not chargeable to Highways),Environmental,Employees,Indirect Employee Expenses,Agency Staff - Waged Posts,04/03/2021,333651,487.95,24-7 Staffing
Environmental & Regulatory,Waste management,Environmental,Employees,Indirect Employee Expenses,Agency Staff - Waged Posts,04/03/2021,333651,1997.46,24-7 Staffing
Planning & Development,Development Control,Planning & Building,Employees,Indirect Employee Expenses,Temporary Staff,11/03/2021,337011,2987.74,Wadey Trees
Planning & Development,Economic Development,Planning Policy & Economic Development ,Supplies & Services,Services,Training Courses,25/03/2021,338469,3000,Sparsholt College Hampshire
Planning & Development,Development Control,Planning & Building,Supplies & Services,Services,Training Courses,11/03/2021,336877,2500,Hart District Council
Environmental & Regulatory,Waste management,Environmental,Transport Related Expenditure,Direct Transport Costs,Tyres,04/03/2021,332582,20.63,Tructyre Ats
Central Services to the Public,Management & Support Services,Environmental,Transport Related Expenditure,Direct Transport Costs,Repair Materials,04/03/2021,332582,437.76,Tructyre Ats
Environmental & Regulatory,Waste management,Environmental,Transport Related Expenditure,Direct Transport Costs,Tyres,04/03/2021,332582,2068.3,Tructyre Ats
Central Services to the Public,Management & Support Services,IT,Supplies & Services,Services,Training Courses,11/03/2021,335155,2528.75,Qa Limited
Environmental & Regulatory,Waste management,Environmental,Transport Related Expenditure,Direct Transport Costs,External Garages,04/03/2021,334464,682.25,Dennis Eagle Ltd
Environmental & Regulatory,Waste management,Environmental,Transport Related Expenditure,Direct Transport Costs,Repair Materials,04/03/2021,334464,1848.6,Dennis Eagle Ltd
Planning & Development,Development Control,Planning & Building,Employees,Indirect Employee Expenses,Temporary Staff,25/03/2021,338114,3065.32,Wadey Trees
Central Services to the Public,Management & Support Services,Environmental,Transport Related Expenditure,Direct Transport Costs,Diesel,25/03/2021,337647,2589.03,Wp Group Limited
Cultural & Related,Open Spaces,Community and Leisure ,Employees,Indirect Employee Expenses,Temporary Staff,04/03/2021,333232,2600,The Arboricultural Co Ltd
Central Services,Corporate & Democratic Core,Corporate & Democratic,Supplies & Services,"Printing, Stationery & General Office Expenses",External Printing,30/03/2021,339029,3135,Latcham Direct Ltd
Planning & Development,Community Development,Community and Leisure ,Supplies & Services,Grants & Subscriptions,Grants,11/03/2021,295936,3146,Relate South West Hampshire & Isle Of Wight
Planning & Development,Community Development,Community and Leisure ,Supplies & Services,Grants & Subscriptions,Grants,11/03/2021,337118,3179,Relate Hampshire & Isle Of Wight
Central Services to the Public,Management & Support Services,Premises & Asset Management,Third Party Payments,Other Establishments,Contract Catering,18/03/2021,336983,2679.27,Edwards And Ward Ltd
Cultural & Related,Recreation & Sport,Community and Leisure ,Supplies & Services,Services,Training Courses,11/03/2021,325993,2765,Right Directions
Cultural & Related,Open Spaces,Community and Leisure ,Premises related Expenditure,Grounds Maintenance Costs,Gm - Additional Works,30/03/2021,338841,2792.79,Stonbury Ltd
Environmental & Regulatory,Waste & Recycling Management,Environmental,Supplies & Services,Miscellaneous Expenses,Recycling Campaign,11/03/2021,336897,2800,Vernham Labels Ltd
Central Services to the Public,Management & Support Services,Environmental,Transport Related Expenditure,Direct Transport Costs,Diesel,11/03/2021,336619,2807.12,Wp Group Limited
Cultural & Related,Open Spaces,Environmental,Supplies & Services,"Equipment, Furniture & Materials",Purchase Equip + Materials,25/03/2021,337020,2883.5,Spaldings (Uk) Limited
Environmental & Regulatory,Regulatory Services,Housing and Environmental Health ,Supplies & Services,Grants and subscriptions,Capital Grants,04/03/2021,335812,3463.29,A & E Builders
Environmental & Regulatory,Street Cleansing (not chargeable to Highways),Environmental,Supplies & Services,Miscellaneous Expenses,Hazardous / Fly Tipped Waste,30/03/2021,338835,2897.1,Bkp Waste & Recycling Ltd
Cultural & Related,Recreation & Sport,Community and Leisure ,Supplies & Services,Miscellaneous Expenses,Promotions / Special Events,04/03/2021,335226,3500,Knightwood Youth Club
Central Services to the Public,Management & Support Services,Finance,Supplies & Services,Services,Vat Consultancy,18/03/2021,336985,2950,Lavat Consulting Limited T/A Pstax
Central Services to the Public,Local Tax Collection,Revenues,Supplies & Services,Communications & Computing,Software Maintenance,11/03/2021,333586,2990.27,Bottomline Technologies Ltd
Cultural & Related,Recreation & Sport,Community and Leisure ,Supplies & Services,"Equipment, Furniture & Materials",Purchase Equip + Materials,25/03/2021,337474,2991.61,Speedy Sales
Environmental & Regulatory,Street Cleansing (not chargeable to Highways),Environmental,Employees,Indirect Employee Expenses,Agency Staff - Waged Posts,11/03/2021,337013,521.68,24-7 Staffing
Environmental & Regulatory,Waste management,Environmental,Employees,Indirect Employee Expenses,Agency Staff - Waged Posts,11/03/2021,337013,2548.35,24-7 Staffing
Central Services to the Public,Management & Support Services,Environmental,Transport Related Expenditure,Direct Transport Costs,Diesel,25/03/2021,338400,3144.95,Wp Group Limited
External Trading Accounts,Business Parks,Premises & Asset Management,Supplies & Services,Services,Professional Fees,30/03/2021,338416,3189.85,Wilks Head & Eve Llp
Environmental & Regulatory,Regulatory Services,Housing and Environmental Health ,Supplies & Services,Grants and subscriptions,Capital Grants,30/03/2021,339071,3844.8,Lifestyle Solutions
Central Services to the Public,Management & Support Services,Premises & Asset Management,Third Party Payments,Other Establishments,Private Contractors,18/03/2021,337667,3227.13,Spear Electrical Limited
Central Services to the Public,Management & Support Services,Premises & Asset Management,Premises related Expenditure,Energy Costs,Gas,30/03/2021,338833,3232.04,Total Gas & Power Ltd
Central Services to the Public,Management & Support Services,IT,Supplies & Services,Communications & Computing,Communication Links,30/03/2021,338903,3252,Virgin Media Payments Ltd
Environmental & Regulatory,Waste management,Environmental,Employees,Indirect Employee Expenses,Agency Staff - Waged Posts,25/03/2021,338139,496.28,24-7 Staffing
Environmental & Regulatory,Street Cleansing (not chargeable to Highways),Environmental,Employees,Indirect Employee Expenses,Agency Staff - Waged Posts,25/03/2021,338139,579.37,24-7 Staffing
Environmental & Regulatory,Waste management,Environmental,Employees,Indirect Employee Expenses,Agency Staff - Waged Posts,25/03/2021,338139,2181.95,24-7 Staffing
Central Services to the Public,Management & Support Services,Finance,Supplies & Services,"Printing, Stationery & General Office Expenses",Postage Costs,30/03/2021,338402,3299.95,Whistl Uk Ltd
Cultural & Related,Recreation & Sport,Community and Leisure ,Supplies & Services,Services,Project Consultancy - Policy,25/03/2021,337695,3366,Continuum Sport & Leisure Ltd
Central Services to the Public,Management & Support Services,IT,Supplies & Services,Communications & Computing,Computer Hardware,04/03/2021,333593,3367.5,Exampleit Ltd
Cultural & Related,Recreation & Sport,Community and Leisure ,Supplies & Services,Services,Professional Fees,11/03/2021,333628,3395,Blake Morgan
"Highways, Roads & Transport",Highways and roads - maintenance,Plan Pol & Transport,Premises related Expenditure,Repairs Alterations & Maintenance of Buildings,Highways Repairs,30/03/2021,339034,3426.6,Signway Supplies (Datchet Ltd)
Planning & Development,Development Control,Planning & Building,Supplies & Services,Services,Project Consultancy - Policy,30/03/2021,338357,3475.9,Hampshire County Council
Central Services to the Public,Management & Support Services,Environmental,Transport Related Expenditure,Direct Transport Costs,Diesel,04/03/2021,333611,3491.6,Wp Group Limited
Central Services to the Public,Management & Support Services,Environmental,Transport Related Expenditure,Direct Transport Costs,Diesel,30/03/2021,338418,3508.75,Wp Group Limited
Cultural & Related,Open Spaces,Community and Leisure ,Premises related Expenditure,Grounds Maintenance Costs,Gm - Additional Works,04/03/2021,335218,3528.5,Amberol Limited
Planning & Development,Development Control,Planning & Building,Employees,Indirect Employee Expenses,Post Entry Training,04/03/2021,335136,4250,Oxford Brookes University
Central Services to the Public,Management & Support Services,Estates and Economic Development ,Third Party Payments,Private contractors,Main Contractor Costs,18/03/2021,337475,3550.65,Mccarthy Bainbridge Ltd
Environmental & Regulatory,Waste management,Environmental,Transport Related Expenditure,Direct Transport Costs,Repair Materials,25/03/2021,337655,3646.89,Dennis Eagle Ltd
Central Services to the Public,Management & Support Services,Premises & Asset Management,Premises related Expenditure,Energy Costs,Gas,11/03/2021,333638,3652.45,Total Gas & Power Ltd
Environmental & Regulatory,Street Cleansing (not chargeable to Highways),Environmental,Employees,Indirect Employee Expenses,Agency Staff - Waged Posts,25/03/2021,338347,38.46,24-7 Staffing
Cultural & Related,Open Spaces,Environmental,Employees,Indirect Employee Expenses,Agency Staff - Waged Posts,25/03/2021,338347,483.22,24-7 Staffing
Environmental & Regulatory,Waste management,Environmental,Employees,Indirect Employee Expenses,Agency Staff - Waged Posts,25/03/2021,338347,3187.58,24-7 Staffing
Planning & Development,Development Control,Planning & Building,Supplies & Services,Communications & Computing,Computer Software,11/03/2021,332603,3825,Idox Solutions
Environmental & Regulatory,"Cemetery, Cremation and Mortuary Services",Community and Leisure ,Premises related Expenditure,Cleaning and domestic supplies,Contract Cleaning - Non Estates,25/03/2021,338369,34.5,Hi-Spec Facilities Services Plc
Environmental & Regulatory,"Cemetery, Cremation and Mortuary Services",Community and Leisure ,Premises related Expenditure,Cleaning and domestic supplies,Contract Cleaning - Non Estates,25/03/2021,338371,34.5,Hi-Spec Facilities Services Plc
Environmental & Regulatory,"Cemetery, Cremation and Mortuary Services",Community and Leisure ,Premises related Expenditure,Cleaning and domestic supplies,Contract Cleaning - Non Estates,30/03/2021,338370,34.5,Hi-Spec Facilities Services Plc
"Highways, Roads & Transport",Parking Services,Plan Pol & Transport,Premises related Expenditure,Cleaning and domestic supplies,Contract Cleaning - Non Estates,25/03/2021,338369,103.5,Hi-Spec Facilities Services Plc
"Highways, Roads & Transport",Parking Services,Plan Pol & Transport,Premises related Expenditure,Cleaning and domestic supplies,Contract Cleaning - Non Estates,25/03/2021,338371,103.5,Hi-Spec Facilities Services Plc
"Highways, Roads & Transport",Parking Services,Plan Pol & Transport,Premises related Expenditure,Cleaning and domestic supplies,Contract Cleaning - Non Estates,30/03/2021,338370,103.5,Hi-Spec Facilities Services Plc
Central Services to the Public,Management & Support Services,Premises & Asset Management,Premises related Expenditure,Cleaning and domestic supplies,Contract Cleaning - Non Estates,25/03/2021,338371,172.51,Hi-Spec Facilities Services Plc
Central Services to the Public,Management & Support Services,Premises & Asset Management,Premises related Expenditure,Cleaning and domestic supplies,Contract Cleaning - Non Estates,25/03/2021,338369,172.53,Hi-Spec Facilities Services Plc
Central Services to the Public,Management & Support Services,Premises & Asset Management,Premises related Expenditure,Cleaning and domestic supplies,Contract Cleaning - Non Estates,30/03/2021,338370,172.53,Hi-Spec Facilities Services Plc
External Trading Accounts,Business Parks,Premises & Asset Management,Premises related Expenditure,Cleaning and domestic supplies,Contract Cleaning - Non Estates,25/03/2021,338369,207.01,Hi-Spec Facilities Services Plc
External Trading Accounts,Business Parks,Premises & Asset Management,Premises related Expenditure,Cleaning and domestic supplies,Contract Cleaning - Non Estates,25/03/2021,338371,207.01,Hi-Spec Facilities Services Plc
External Trading Accounts,Business Parks,Premises & Asset Management,Premises related Expenditure,Cleaning and domestic supplies,Contract Cleaning - Non Estates,30/03/2021,338370,207.01,Hi-Spec Facilities Services Plc
Cultural & Related,Recreation & Sport,Community and Leisure ,Premises related Expenditure,Cleaning and domestic supplies,Contract Cleaning - Non Estates,25/03/2021,338369,724.54,Hi-Spec Facilities Services Plc
Cultural & Related,Recreation & Sport,Community and Leisure ,Premises related Expenditure,Cleaning and domestic supplies,Contract Cleaning - Non Estates,25/03/2021,338371,724.54,Hi-Spec Facilities Services Plc
Cultural & Related,Recreation & Sport,Community and Leisure ,Premises related Expenditure,Cleaning and domestic supplies,Contract Cleaning - Non Estates,30/03/2021,338370,724.54,Hi-Spec Facilities Services Plc
Cultural & Related,Open Spaces,Community and Leisure ,Premises related Expenditure,Cleaning and domestic supplies,Contract Cleaning - Non Estates,25/03/2021,338369,724.54,Hi-Spec Facilities Services Plc
Cultural & Related,Open Spaces,Community and Leisure ,Premises related Expenditure,Cleaning and domestic supplies,Contract Cleaning - Non Estates,25/03/2021,338371,724.54,Hi-Spec Facilities Services Plc
Cultural & Related,Open Spaces,Community and Leisure ,Premises related Expenditure,Cleaning and domestic supplies,Contract Cleaning - Non Estates,30/03/2021,338370,724.54,Hi-Spec Facilities Services Plc
Environmental & Regulatory,Regulatory Services,Premises & Asset Management,Premises related Expenditure,Cleaning and domestic supplies,Contract Cleaning - Non Estates,25/03/2021,338369,1932.11,Hi-Spec Facilities Services Plc
Environmental & Regulatory,Regulatory Services,Premises & Asset Management,Premises related Expenditure,Cleaning and domestic supplies,Contract Cleaning - Non Estates,30/03/2021,338370,1932.11,Hi-Spec Facilities Services Plc
Environmental & Regulatory,Regulatory Services,Premises & Asset Management,Premises related Expenditure,Cleaning and domestic supplies,Contract Cleaning - Non Estates,25/03/2021,338371,1932.13,Hi-Spec Facilities Services Plc
Environmental & Regulatory,Regulatory Services,Housing and Environmental Health ,Supplies & Services,Grants and subscriptions,Capital Grants,04/03/2021,335810,4707.48,A & E Builders
Environmental & Regulatory,Regulatory Services,Housing and Environmental Health ,Supplies & Services,Grants and subscriptions,Capital Grants,25/03/2021,338394,4715,Liftech Systems (Se) Ltd
Environmental & Regulatory,Waste management,Environmental,Employees,Indirect Employee Expenses,Agency Staff - Waged Posts,25/03/2021,338142,130.6,24-7 Staffing
Environmental & Regulatory,Street Cleansing (not chargeable to Highways),Environmental,Employees,Indirect Employee Expenses,Agency Staff - Waged Posts,25/03/2021,338142,579.37,24-7 Staffing
Environmental & Regulatory,Waste management,Environmental,Employees,Indirect Employee Expenses,Agency Staff - Waged Posts,25/03/2021,338142,3238.17,24-7 Staffing
Environmental & Regulatory,Regulatory Services,Housing and Environmental Health ,Supplies & Services,Grants and subscriptions,Capital Grants,04/03/2021,335148,4791.56,Bartram Building Maintenance Services
Planning & Development,Development Control,Planning & Building,Supplies & Services,Services,Legal Fees,30/03/2021,338333,4000,Cornerstone Barristers
Environmental & Regulatory,Waste management,Environmental,Employees,Indirect Employee Expenses,Agency Staff - Waged Posts,30/03/2021,338543,635.78,24-7 Staffing
Environmental & Regulatory,Street Cleansing (not chargeable to Highways),Environmental,Employees,Indirect Employee Expenses,Agency Staff - Waged Posts,30/03/2021,338543,980.79,24-7 Staffing
Environmental & Regulatory,Waste management,Environmental,Employees,Indirect Employee Expenses,Agency Staff - Waged Posts,30/03/2021,338543,2424.28,24-7 Staffing
Environmental & Regulatory,Regulatory Services,Housing and Environmental Health ,Supplies & Services,Grants and subscriptions,Capital Grants,04/03/2021,335813,4888.78,A & E Builders
Environmental & Regulatory,Regulatory Services,Housing and Environmental Health ,Supplies & Services,Grants and subscriptions,Capital Grants,18/03/2021,337773,4921.48,Lifestyle Solutions
Central Services,Corporate & Democratic Core,Corporate & Democratic,Supplies & Services,Services,Legal Fees,11/03/2021,332622,4950,Radcliffe Chambers
Environmental & Regulatory,Community Development,Community and Leisure ,Supplies & Services,Grants & Subscriptions,Grants,04/03/2021,335803,5000,Yellow Brick Road Projects
Planning & Development,Development Control,Planning & Building,Supplies & Services,Services,Legal Fees,30/03/2021,338198,4200,Sharpe Pritchard Llp
Environmental & Regulatory,Waste management,Environmental,Employees,Indirect Employee Expenses,Agency Staff - Waged Posts,25/03/2021,338143,235.08,24-7 Staffing
Environmental & Regulatory,Street Cleansing (not chargeable to Highways),Environmental,Employees,Indirect Employee Expenses,Agency Staff - Waged Posts,25/03/2021,338143,619.63,24-7 Staffing
Environmental & Regulatory,Waste management,Environmental,Employees,Indirect Employee Expenses,Agency Staff - Waged Posts,25/03/2021,338143,3346.31,24-7 Staffing
Cultural & Related,Recreation & Sport,Community and Leisure ,Supplies & Services,Grants and subscriptions,Capital Grants,18/03/2021,337772,5228.5,Test Valley Brass Band
Environmental & Regulatory,Regulatory Services,Housing and Environmental Health ,Supplies & Services,Grants and subscriptions,Capital Grants,25/03/2021,338391,5525,Grb Groundworks Ltd
Environmental & Regulatory,Regulatory Services,Housing and Environmental Health ,Supplies & Services,Grants and subscriptions,Capital Grants,25/03/2021,338390,5950,Grb Groundworks Ltd
Environmental & Regulatory,Community Development,Community and Leisure ,Supplies & Services,Grants & Subscriptions,Grants,04/03/2021,335806,6000,Rcs Ltd
Central Services to the Public,Management & Support Services,Estates and Economic Development ,Third Party Payments,Private contractors,Main Contractor Costs,25/03/2021,333233,5040,Hawthorn Theatrical Ltd
Environmental & Regulatory,Waste management,Environmental,Transport Related Expenditure,Direct Transport Costs,Repair Materials,30/03/2021,338420,407.35,Dennis Eagle Ltd
Environmental & Regulatory,Waste management,Environmental,Transport Related Expenditure,Direct Transport Costs,Repair Materials,30/03/2021,338420,4633.79,Dennis Eagle Ltd
Central Services to the Public,Management & Support Services,IT,Supplies & Services,Communications & Computing,Software Maintenance,03/03/2021,335126,6404,Waterford Technologies Ltd
Environmental & Regulatory,Regulatory Services,Housing and Environmental Health ,Supplies & Services,Grants and subscriptions,Capital Grants,30/03/2021,339070,6876.45,Lifestyle Solutions
Central Services to the Public,Management & Support Services,Environmental,Transport Related Expenditure,Direct Transport Costs,Vehicles and Plant,25/03/2021,337122,5825,Lister Wilder
Environmental & Regulatory,Waste management,Environmental,Supplies & Services,"Equipment, Furniture & Materials",Purchase Equip + Materials,25/03/2021,338342,6249.32,J & H M Dickson Ltd
Cultural & Related,Open Spaces,Environmental,Supplies & Services,"Equipment, Furniture & Materials",Purchase Equip + Materials,04/03/2021,332661,7524,Rigby Taylor Ltd
External Trading Accounts,Business Parks,Premises & Asset Management,Premises related Expenditure,Energy Costs,Electricity,04/03/2021,333218,89.23,Hampshire County Council
Cultural & Related,Recreation & Sport,Premises & Asset Management,Premises related Expenditure,Energy Costs,Electricity,04/03/2021,333218,95.5,Hampshire County Council
Cultural & Related,Culture & Heritage,Community and Leisure ,Premises related Expenditure,Energy Costs,Electricity,04/03/2021,333218,105.42,Hampshire County Council
"Highways, Roads & Transport",Highways and roads - maintenance,Plan Pol & Transport,Premises related Expenditure,Energy Costs,Electricity,04/03/2021,333218,143.34,Hampshire County Council
Cultural & Related,Open Spaces,Community and Leisure ,Premises related Expenditure,Energy Costs,Electricity,04/03/2021,333218,405.86,Hampshire County Council
"Highways, Roads & Transport",Parking Services,Plan Pol & Transport,Premises related Expenditure,Energy Costs,Electricity,04/03/2021,333218,5590.75,Hampshire County Council
Central Services to the Public,Management & Support Services,Environmental,Transport Related Expenditure,Direct Transport Costs,Vehicles and Plant,25/03/2021,333646,6650,A T H Machinery Ltd
Central Services to the Public,Local Land Charges,Legal & Democratic,Supplies & Services,Miscellaneous Expenses,Land Charges Fees,30/03/2021,338202,7000,Hampshire County Council
Environmental & Regulatory,Waste management,Environmental,Supplies & Services,Grants & Subscriptions,Subscriptions,04/03/2021,333617,7040.07,Hampshire County Council
Planning & Development,Development Control,Planning & Building,Supplies & Services,Services,Legal Fees,04/03/2021,332598,7285,Cornerstone Barristers
Environmental & Regulatory,Waste management,Environmental,Transport Related Expenditure,Direct Transport Costs,Repair Materials,25/03/2021,337654,7293.78,Dennis Eagle Ltd
Environmental & Regulatory,Community Development,Community and Leisure ,Supplies & Services,Grants & Subscriptions,Grants,04/03/2021,335804,8808.92,Rcs Ltd
Cultural & Related,Recreation & Sport,Community and Leisure ,Premises related Expenditure,Repairs Alterations & Maintenance of Buildings,Estates premises costs - AMP,25/03/2021,337697,7549,Pointer Group Ltd
Cultural & Related,Open Spaces,Community and Leisure ,Premises related Expenditure,Grounds Maintenance Costs,Non Contract Tree Works,30/03/2021,338834,1252.57,Gristwood & Toms Ltd
Cultural & Related,Open Spaces,Community and Leisure ,Premises related Expenditure,Repairs Alterations & Maintenance of Buildings,Estates premises costs - AMP,30/03/2021,338834,6607.31,Gristwood & Toms Ltd
Central Services to the Public,Management & Support Services,Environmental,Transport Related Expenditure,Direct Transport Costs,Diesel,11/03/2021,336859,7971.2,Wp Group Limited
Planning & Development,Economic Development,Planning Policy & Economic Development ,Supplies & Services,Grants & Subscriptions,Grants,25/03/2021,338468,10000,The University Of Southampton Science Park Lt
Environmental & Regulatory,Community Development,Community and Leisure ,Supplies & Services,Grants & Subscriptions,Grants,04/03/2021,335815,10000,Unity
Cultural & Related,Culture & Heritage,Community and Leisure ,Third Party Payments,Private contractors,Main Contractor Costs,04/03/2021,335134,10000,Personal Data - Data Protection Act 1998
Housing Services,"Housing strategy, advice and enabling",Housing and Environmental Health ,Supplies & Services,Communications & Computing,Computer Software,11/03/2021,332625,8442.9,Civica Uk Ltd
Central Services to the Public,Management & Support Services,Environmental,Transport Related Expenditure,Direct Transport Costs,Diesel,25/03/2021,338323,8769.6,Wp Group Limited
Environmental & Regulatory,Regulatory Services,Housing and Environmental Health ,Supplies & Services,Grants and subscriptions,Capital Grants,11/03/2021,336919,10536,Astor Bannerman (Medical) Ltd
Planning & Development,Planning Policy,Plan Pol & Transport,Supplies & Services,Services,Project Consultancy - Policy,04/03/2021,333225,8800,Portsmouth City Council
Environmental & Regulatory,Community Development,Community and Leisure ,Supplies & Services,Grants & Subscriptions,Grants,25/03/2021,338478,10600,Andover Mind
Cultural & Related,Open Spaces,Community and Leisure ,Premises related Expenditure,Repairs Alterations & Maintenance of Buildings,Estates premises costs - AMP,11/03/2021,336658,8845,Cts Bridges Ltd
Central Services to the Public,Management & Support Services,Environmental,Transport Related Expenditure,Direct Transport Costs,Diesel,04/03/2021,333610,9125.16,Wp Group Limited
Planning & Development,Development Control,Planning & Building,Supplies & Services,Services,Project Consultancy - Policy,30/03/2021,338406,9470.05,Hampshire County Council
Cultural & Related,Open Spaces,Environmental,Supplies & Services,"Equipment, Furniture & Materials",Purchase Equip + Materials,25/03/2021,338113,9500,T H White Ltd
Planning & Development,Planning Policy,Plan Pol & Transport,Supplies & Services,Services,Project Consultancy - Policy,30/03/2021,338180,9653.49,Portsmouth City Council
Planning & Development,Development Control,Planning & Building,Supplies & Services,Services,Project Consultancy - Policy,30/03/2021,336895,9808.32,Hampshire County Council
"Highways, Roads & Transport",Highways and roads - maintenance,Plan Pol & Transport,Third Party Payments,Private contractors,Main Contractor Costs,18/03/2021,337135,9817.5,Ksw Engineering (Yorkshire) Ltd
Environmental & Regulatory,Waste management,Environmental,Supplies & Services,"Equipment, Furniture & Materials",Purchase Equip + Materials,11/03/2021,330772,9840,Mgb Plastics Ltd
Environmental & Regulatory,Waste management,Environmental,Supplies & Services,"Equipment, Furniture & Materials",Purchase Equip + Materials,11/03/2021,331224,9840,Mgb Plastics Ltd
Cultural & Related,Recreation & Sport,Community and Leisure ,Supplies & Services,"Equipment, Furniture & Materials",Purchase Equip + Materials,30/03/2021,338205,9911,Gh Display Ltd
Environmental & Regulatory,Regulatory Services,Housing and Environmental Health ,Supplies & Services,Grants and subscriptions,Capital Grants,04/03/2021,335147,12000,Bevan & Co Building
Central Services,Corporate & Democratic Core,Corporate & Democratic,Supplies & Services,Miscellaneous Expenses,External Audit Fees,30/03/2021,339046,10169.75,Ernst & Young Llp
Central Services,Corporate & Democratic Core,Corporate & Democratic,Supplies & Services,Miscellaneous Expenses,External Audit Fees,30/03/2021,339047,10169.75,Ernst & Young Llp
Central Services,Corporate & Democratic Core,Corporate & Democratic,Supplies & Services,Miscellaneous Expenses,External Audit Fees,30/03/2021,339048,10169.75,Ernst & Young Llp
Environmental & Regulatory,Regulatory Services,Housing and Environmental Health ,Supplies & Services,Grants and subscriptions,Capital Grants,04/03/2021,335814,12425.95,Wessex Lift Co Ltd
Environmental & Regulatory,Regulatory Services,Housing and Environmental Health ,Supplies & Services,Grants and subscriptions,Capital Grants,04/03/2021,335146,12778.85,Wessex Lift Co Ltd
Central Services to the Public,Local Land Charges,Legal & Democratic,Supplies & Services,Miscellaneous Expenses,Land Charges Fees,30/03/2021,338875,11080,Hampshire County Council
Central Services to the Public,Elections,Legal & Democratic,Supplies & Services,Communications & Computing,Software Maintenance,04/03/2021,332626,12485.57,Civica Uk Ltd
Central Services to the Public,Management & Support Services,Finance,Employees,Direct Employee Expenses,Shared service staffing costs,11/03/2021,336907,12750,Tiaa
Central Services to the Public,Management & Support Services,Environmental,Transport Related Expenditure,Direct Transport Costs,Vehicles and Plant,25/03/2021,338422,14535,A T H Machinery Ltd
External Trading Accounts,Property Investments,Estates and Economic Development ,Third Party Payments,Private contractors,Main Contractor Costs,30/03/2021,338904,15997.2,Dentons Ukmea Llp
Central Services to the Public,Management & Support Services,Housing and Environmental Health ,Supplies & Services,Communications & Computing,Software Maintenance,11/03/2021,331909,16664.81,Civica Uk Ltd
Environmental & Regulatory,Community Development,Community and Leisure ,Supplies & Services,Grants & Subscriptions,Grants,30/03/2021,339062,20000,Hcc Learning In Libraries
Environmental & Regulatory,Community Development,Community and Leisure ,Supplies & Services,Grants & Subscriptions,Grants,25/03/2021,338477,20400,Unity
Cultural & Related,Open Spaces,Community and Leisure ,Premises related Expenditure,Grounds Maintenance Costs,Non Contract Tree Works,30/03/2021,337684,2308.74,Gristwood & Toms Ltd
Cultural & Related,Open Spaces,Community and Leisure ,Premises related Expenditure,Repairs Alterations & Maintenance of Buildings,Estates premises costs - AMP,30/03/2021,337684,14790.82,Gristwood & Toms Ltd
Environmental & Regulatory,Street Cleansing (not chargeable to Highways),Environmental,Third Party Payments,Other Establishments,Private Contractors,18/03/2021,330375,19295,Forest Traffic Services Ltd
Cultural & Related,Recreation & Sport,Community and Leisure ,Supplies & Services,Grants and subscriptions,Capital Grants,18/03/2021,337778,24152,Enham Trust
"Highways, Roads & Transport",Parking Services,Plan Pol & Transport,Supplies & Services,Services,Professional Fees,25/03/2021,336881,26182.11,Test Valley Borough Council
Central Services to the Public,Management & Support Services,Housing and Environmental Health ,Supplies & Services,Communications & Computing,Software Maintenance,11/03/2021,332624,24429.52,Civica Uk Ltd
External Trading Accounts,Business Parks,Premises & Asset Management,Supplies & Services,Miscellaneous Expenses,Promotions / Special Events,25/03/2021,336880,29504,Test Valley Borough Council
External Trading Accounts,Business Parks,Premises & Asset Management,Supplies & Services,Services,Professional Fees,25/03/2021,337690,46390.29,Kier Ventures Ltd
Cultural & Related,Culture & Heritage,Estates and Economic Development ,Third Party Payments,Private contractors,Main Contractor Costs,11/03/2021,336896,63389.07,Novus Property Solutions Ltd
Central Services to the Public,Non-Distributed Costs,Corporate & Democratic,Employees,Indirect Employee Expenses,Added Years Pension Payments,30/03/2021,338867,96153.66,Hampshire Pension Fund
External Trading Accounts,Business Parks,Premises & Asset Management,Premises related Expenditure,Miscellaneous Expenses,Service Charge,30/03/2021,338881,101012.5,Test Valley Borough Council
Cultural & Related,Recreation & Sport,Community and Leisure ,Third Party Payments,Private contractors,Main Contractor Costs,30/03/2021,339075,210098.23,Places For People Leisure Ltd - Developments
